{"text_format":"1","workbook":"xlsx","n_sheets":11,"sheets":["Index","General Info","Financial Results","Cash Flow Direct","Cash Flow Indirect","Asset Liabilities","Segment","OCI","TextBlock","Taxonomy","Index2"],"not_rendered":{"charts":0,"images":1,"macros":1,"external_links":1,"defined_names":10,"comments":0,"pivot_tables":0},"unopened":[],"bounds":{"document_bytes":16777216,"sheet_cells":100000,"rows_first":2000,"rows_last":500,"rows_between":2000,"halvings":0,"cell_chars":16384,"cell_head_chars":4096},"cells_cut":0,"cells_raw":0,"read":"whole","date_system":"1900"}

{"sheet":"Index","index":0,"n_rows":57,"n_cols":10,"rows_kept":57,"cut":false,"hidden":false,"merged":[[10,5,10,8],[5,4,5,8],[6,5,6,8],[7,5,7,8],[8,5,8,8],[9,5,9,8],[28,4,28,8],[11,5,11,8],[14,3,14,9],[15,3,15,9],[16,3,16,9],[19,3,19,9],[20,3,20,9],[21,3,21,9],[22,3,22,9],[23,3,23,9],[24,3,24,9],[27,3,27,9],[44,3,44,9],[29,4,29,8],[30,4,30,8],[31,4,31,8],[32,4,32,8],[35,3,35,9],[36,3,36,9],[39,3,39,9],[40,3,40,9],[41,3,41,9],[42,3,42,9],[43,3,43,9],[53,3,53,9],[54,3,54,9],[55,3,55,9],[56,3,56,9],[45,3,45,9],[46,3,46,9],[49,3,49,9],[50,3,50,9],[51,3,51,9],[52,3,52,9]]}
[]
[]
[]
[]
[]
[null,null,null,null,"                                      XBRL Excel Utility"]
[null,null,null,null,"1.","Overview"]
[null,null,null,null,"2.","Before you begin"]
[null,null,null,null,"3.","Index"]
[null,null,null,null,"4.","Import XBRL file"]
[null,null,null,null,"5.","Steps for filing - NBFC Format"]
[null,null,null,null,"6.","Fill up the data in excel utility"]
[]
[]
[null,null,null,"1. Overview"]
[null,null,null,"The excel utility can be used for creating the XBRL/XML file for efiling of NBFC."]
[null,null,null,"XBRL filling consists of two processes. Firstly generation of XBRL/XML file and upload of generated XBRL/XML file to BSE Listing Center Website (www.listing.bseindia.com) ."]
[]
[]
[null,null,null," 2.  Before you begin"]
[null,null,null,"1. The version of Microsoft Excel in your system should be Microsoft Office Excel 2007 and above."]
[null,null,null,"2. The system should have a file compression software to unzip excel utility file."]
[null,null,null,"3. Make sure that you have downloaded the latest Excel Utility from BSE Website to your local system."]
[null,null,null,"4. Make sure that you have downloaded the Chrome Browser to view report generated from Excel utility"]
[null,null,null,"5. Please enable the Macros (if disabled) as per instructions given in manual, so that all the functionalities of  Excel Utility works fine. Please first go through Enable Macro - Manual attached with zip file."]
[]
[]
[null,null,null,"3. Index "]
[null,null,null,1,"Details of general information about company",null,null,null,null,"General Info"]
[null,null,null,2,"NBFC By Companies Other than Banks",null,null,null,null,"Financial Results"]
[null,null,null,3,"Statement of Asset and Liabilities",null,null,null,null,"Asset Liabilities"]
[null,null,null,4,"Format of Reporting of Segment wise Revenue, Result and Capital Employed along with the quartely results",null,null,null,null,"Segment"]
[null,null,null,5,"OCI (Other Comprehensive Income)",null,null,null,null,"OCI"]
[]
[]
[null,null,null,"4. Import XBRL file"]
[null,null,null,"1. Now you can import and view previously generated XBRL files by clicking Import XBRL button on Genenral information sheet. "]
[]
[]
[null,null,null,"5. Steps for Filing Of  Financial Results"]
[null,null,null,"I.  Fill up the data: Navigate to each field of every section in the sheet to provide applicable data in correct format.  (Formats will get reflected while filling data.)  \n   - Use paste special command to paste data from other sheet."]
[null,null,null,"II. Validating Sheets:  Click on the ''Validate \"  button to ensure that the sheet has been properly filled and also data has been furnished in proper format. If there are some errors on the sheet, excel utility will prompt you about the same."]
[null,null,null,"III. Validate All Sheets:  Click on the ''Home\"  button. And then click on \"Validate All Sheet\" button to ensure that all sheets has been properly filled and validated successfully. If there are some errors on the sheet, excel utility will prompt you about the same and stop validation at the same time. After correction, once again follow the same procedure to validate all sheets."]
[null,null,null,"Excel Utility will not allow you to generate XBRL/XML until you rectify all errors. "]
[null,null,null,"IV. Generate XML :   Excel Utility will not allow you to generate XBRL/XML unless successful validation of all sheet is completed. Now click on 'Generate XML'' to generate XBRL/XML file. \n    - Save the XBRL/XML file in your desired folder in local system. "]
[null,null,null,"V. Generate Report :   Excel Utility will allow you to generate Report. Now click on 'Generate Report'' to generate html report.   \n     - Save the HTML Report file in your desired folder in local system.     \n     - To view HTML Report open \"Chrome Web Browser\" . \n     - To print report in PDF Format, Click on print button and save as PDF. "]
[null,null,null,"VI. Upload XML file to BSE Listing Center: For uploading the XBRL/XML file generated through  Utility, login to BSE Listing Center and upload generated xml file. On Upload screen provide the required information and browse to select XML file and submit the XML.\n"]
[]
[]
[null,null,null,"6. Fill up the data in excel utility"]
[null,null,null,"1. Cells with red fonts indicate mandatory fields. "]
[null,null,null,"2. If mandatory field is left empty, then Utility will not allow you to proceed further for generating XML."]
[null,null,null,"3. You are not allowed to enter data in the Grey Cells."]
[null,null,null,"4. If fields are not applicable to your company then leave it blank. Do not insert Zero unless it is a mandatory field."]
[null,null,null,"5. Data provided must be in correct format, otherwise Utility will not allow you to proceed further for generating XML."]
[null,null,null,"6. Select data from \"Dropdown list\" wherever applicable. "]
[null,null,null,"7. Adding Notes:  Click on \"Add Notes\" button to add notes "]

{"sheet":"General Info","index":1,"n_rows":70,"n_cols":27,"rows_kept":70,"cut":false,"hidden":false,"merged":[[21,5,22,7],[25,5,27,7],[4,3,4,7],[5,5,11,7],[12,7,15,7],[17,5,17,7],[20,5,20,7]]}
[null,null,null,null,null,null,null,null,null,null,null,null,"Yes","Cash Flow Direct",null,null,null,null,null,null,null,null,null,null,"First quarter","First quarter","Declaration of unmodified opinion"]
[null,null,null,null,null,null,null,null,null,null,null,null,"No","Cash Flow Indirect",null,null,null,null,null,"Audited",null,null,null,null,"Half yearly","Half yearly","Statement on impact of audit qualification"]
[null,null,null,null,null,null,null,null,null,null,null,null,null,null,null,null,"Consolidated",null,null,"Unaudited",null,null,null,null,"Third quarter","Third quarter","Not applicable"]
[null,null,null,null,null,null,null,null,null,null,null,null,null,null,null,null,"Standalone","Lakhs","Single segment",null,null,null,null,null,"Fourth quarter","Fourth quarter"]
[null,null,null,"General information about company",null,null,null,null,null,null,null,null,null,null,null,null,null,"Millions","Multi segment","First quarter","Half yearly",null,null,null,"Yearly","Fifth quarter"]
[null,null,null,"Scrip code",934980,null,null,null,null,null,"ScripCode",null,null,null,null,null,null,"Billions","Geographical","Half yearly","Yearly",null,null,null,null,"Yearly"]
[null,null,null,"NSE Symbol",null,null,null,null,null,null,"Symbol",null,null,null,null,null,null,"Crores",null,"Third quarter"]
[null,null,null,"MSEI Symbol",null,null,null,null,null,null,"MSEISymbol",null,null,null,null,null,null,null,null,"Yearly"]
[null,null,null,"ISIN*",null,null,null,null,null,null,"ISIN"]
[null,null,null,"Name of company","Muthoottu Mini Financiers Limited",null,null,null,null,null,"NameOfTheCompany",null,null,null,"Equity"]
[null,null,null,"Type of company",null,null,null,null,null,null,"TypeOfCompany",null,null,null,"Debt securities and/or non-cumulative redeemable preference shares",null,"00"]
[null,null,null,"Class of security","Debt securities and/or non-cumulative redeemable preference shares",null,null,null,null,null,"ClassOfSecurity",null,null,null,"Equity and Debt",null,"01","01",null,null,null,null,null,null,null,6]
[null,null,null,"Date of start of financial year","01","04",2022,null,null,null,"DateOfStartOfFinancialYear",null,null,null,null,null,"02","02","2015"]
[null,null,null,"Date of end of financial year","30","09",2022,null,null,null,"DateOfEndOfFinancialYear",null,null,null,null,null,"03","03","2016"]
[null,null,null,"Date of board meeting when results were approved","12","11",2022,null,null,null,"DateOfBoardMeetingWhenFinancialResultsWereApproved",null,null,null,null,null,"04","04",2017]
[null,null,null,"Date on which prior intimation of the meeting for considering financial results was informed to the exchange",null,null,null,null,null,null,"DateOnWhichPriorIntimationOfTheMeetingForConsideringFinancialResultsWasInformedToTheExchange",null,null,null,null,null,"05","05",2018]
[null,null,null,"Description of presentation currency","INR",null,null,null,null,null,"DescriptionOfPresentationCurrency",null,null,null,null,null,"06","06",2019]
[null,null,null,"Level of rounding used in financial results","Lakhs","Reporting only in \"Lakhs\", \"Millions\", \"Billions\", \"Crores\" Allowed",null,null,null,null,"LevelOfRoundingUsedInFinancialStatements",null,null,null,null,null,"07","07",2020,null,null,null,null,null,null,{"$f":"IF($E$12=$O$11,Dbt,IF($Z$12=15,Diff15,IF($Z$12=18,Diff18,IF($Z$12<=12,Diff12,Eqt))))","v":{"$error":"#VALUE!"}}]
[null,null,null,"Reporting Quarter","Half yearly",null,null,null,null,null,"ReportingQuarter",null,null,null,null,null,"08","08",2021]
[null,null,null,"Nature of report standalone or consolidated","Standalone",null,null,null,null,null,"NatureOfReportStandaloneConsolidated",null,null,null,null,null,"09","09",2022]
[null,null,null,"Whether results are audited or unaudited","Unaudited","For Current Quarter Only",null,null,null,null,"WhetherResultsAreAuditedOrUnaudited",null,null,null,null,null,"10","10",2023]
[null,null,null,"Segment Reporting","Single segment",null,null,null,null,null,"IsCompanyReportingMultisegmentOrSingleSegment",null,null,null,null,null,"11","11",2024]
[null,null,null,"Description of single segment","Gold Loan",null,null,null,null,null,"DescriptionOfSingleSegment",null,null,null,null,null,"12","12",2025]
[null,null,null,"Start date and time of board meeting","12-11-2022","14","00","HH:MM",null,null,"StartTimeOfBoardMeeting",null,null,null,null,null,"13",null,2026,null,null,null,null,null,null,"DateOfStartOfBoardMeeting"]
[null,null,null,"End date and time of board meeting","12-11-2022","20","00","HH:MM",null,null,"EndTimeOfBoardMeeting",null,null,null,null,null,"14",null,null,null,null,null,null,null,null,"DateOfEndOfBoardMeeting"]
[null,null,null,"Whether cash flow statement is applicable on company","Yes",null,null,null,null,null,"WhetherCashFlowStatementIsApplicableOnCompany",null,null,null,null,null,"15"]
[null,null,null,"Type of cash flow statement","Cash Flow Indirect",null,null,null,null,null,"TypeOfCashFlowStatement",null,null,null,null,null,"16"]
[null,null,null,"Declaration of unmodified opinion or statement on impact of audit qualification","Not applicable",null,null,null,null,null,"DeclarationOfUnmodifiedOpinionOrStatementOnImpactOfAuditQualification",null,null,null,null,null,"17"]
[null,null,null,null,null,null,null,null,null,null,null,null,null,null,null,null,"18"]
[null,null,null,null,null,null,null,null,null,null,null,null,null,null,null,null,"19"]
[null,null,null,null,null,null,null,null,null,null,null,null,null,null,null,null,"20"]
[null,null,null,null,null,null,null,null,null,null,null,null,null,null,null,null,"21"]
[null,null,null,null,null,null,null,null,null,null,null,null,null,null,null,null,"22"]
[null,null,null,null,null,null,null,null,null,null,null,null,null,null,null,null,"23"]
[null,null,null,null,null,null,null,null,null,null,null,null,null,null,null,null,"24"]
[null,null,null,null,null,null,null,null,null,null,null,null,null,null,null,null,"25"]
[null,null,null,null,null,null,null,null,null,null,null,null,null,null,null,null,"26"]
[null,null,null,null,null,null,null,null,null,null,null,null,null,null,null,null,"27"]
[null,null,null,null,null,null,null,null,null,null,null,null,null,null,null,null,"28"]
[null,null,null,null,null,null,null,null,null,null,null,null,null,null,null,null,"29"]
[null,null,null,null,null,null,null,null,null,null,null,null,null,null,null,null,"30"]
[null,null,null,null,null,null,null,null,null,null,null,null,null,null,null,null,"31"]
[null,null,null,null,null,null,null,null,null,null,null,null,null,null,null,null,"32"]
[null,null,null,null,null,null,null,null,null,null,null,null,null,null,null,null,"33"]
[null,null,null,null,null,null,null,null,null,null,null,null,null,null,null,null,"34"]
[null,null,null,null,null,null,null,null,null,null,null,null,null,null,null,null,"35"]
[null,null,null,null,null,null,null,null,null,null,null,null,null,null,null,null,"36"]
[null,null,null,null,null,null,null,null,null,null,null,null,null,null,null,null,"37"]
[null,null,null,null,null,null,null,null,null,null,null,null,null,null,null,null,"38"]
[null,null,null,null,null,null,null,null,null,null,null,null,null,null,null,null,"39"]
[null,null,null,null,null,null,null,null,null,null,null,null,null,null,null,null,"40"]
[null,null,null,null,null,null,null,null,null,null,null,null,null,null,null,null,"41"]
[null,null,null,null,null,null,null,null,null,null,null,null,null,null,null,null,"42"]
[null,null,null,null,null,null,null,null,null,null,null,null,null,null,null,null,"43"]
[null,null,null,null,null,null,null,null,null,null,null,null,null,null,null,null,"44"]
[null,null,null,null,null,null,null,null,null,null,null,null,null,null,null,null,"45"]
[null,null,null,null,null,null,null,null,null,null,null,null,null,null,null,null,"46"]
[null,null,null,null,null,null,null,null,null,null,null,null,null,null,null,null,"47"]
[null,null,null,null,null,null,null,null,null,null,null,null,null,null,null,null,"48"]
[null,null,null,null,null,null,null,null,null,null,null,null,null,null,null,null,"49"]
[null,null,null,null,null,null,null,null,null,null,null,null,null,null,null,null,"50"]
[null,null,null,null,null,null,null,null,null,null,null,null,null,null,null,null,"51"]
[null,null,null,null,null,null,null,null,null,null,null,null,null,null,null,null,"52"]
[null,null,null,null,null,null,null,null,null,null,null,null,null,null,null,null,"53"]
[null,null,null,null,null,null,null,null,null,null,null,null,null,null,null,null,"54"]
[null,null,null,null,null,null,null,null,null,null,null,null,null,null,null,null,"55"]
[null,null,null,null,null,null,null,null,null,null,null,null,null,null,null,null,"56"]
[null,null,null,null,null,null,null,null,null,null,null,null,null,null,null,null,"57"]
[null,null,null,null,null,null,null,null,null,null,null,null,null,null,null,null,"58"]
[null,null,null,null,null,null,null,null,null,null,null,null,null,null,null,null,"59"]

{"sheet":"Financial Results","index":2,"n_rows":104,"n_cols":19,"rows_kept":104,"cut":false,"hidden":false,"merged":[[50,5,50,6],[7,3,7,6],[8,3,8,4],[13,4,13,6],[14,5,14,6],[39,5,39,6],[15,5,15,6],[24,5,24,6],[91,5,91,6],[94,5,94,6],[97,5,97,6],[66,5,66,6],[79,5,79,6],[82,5,82,6],[85,5,85,6],[88,5,88,6],[90,5,90,6]]}
[]
[]
[]
[]
[]
[]
[]
[null,null,null,"Financial Results – NBFC"]
[null,null,null,"Particulars",null,"3 months/ 6 months ended             (dd-mm-yyyy)","Year to date figures for current period ended                                        (dd-mm-yyyy)"]
[null,null,null,"A","Date of start of reporting period","01-07-2022","01-04-2022",null,null,null,"DateOfStartOfReportingPeriod"]
[null,null,null,"B","Date of end of reporting period","30-09-2022","30-09-2022",null,null,null,"DateOfEndOfReportingPeriod"]
[null,null,null,"C","Whether results are audited or unaudited",{"$f":"+IF(COUNTA('General Info'!E21),'General Info'!E21,\"\")","v":"Unaudited"},{"$f":"+IF(COUNTA('General Info'!E21),'General Info'!E21,\"\")","v":"Unaudited"},null,null,null,"WhetherResultsAreAuditedOrUnaudited",null,null,null,"Audited"]
[null,null,null,"D","Nature of report standalone or consolidated",{"$f":"+IF(COUNTA('General Info'!E20),'General Info'!E20,\"\")","v":"Standalone"},{"$f":"+IF(COUNTA('General Info'!E20),'General Info'!E20,\"\")","v":"Standalone"},null,null,null,"NatureOfReportStandaloneConsolidated",null,null,null,"Unaudited"]
[null,null,null,"Part I","                                      Blue color marked fields are non-mandatory.                                                                                                                                                                                For Consolidated Results, if the company has no figures for 3 months / 6 months ended, in such case zero shall be inserted in the said column."]
[null,null,null,1,"Income"]
[null,null,null,null,"Revenue from operations"]
[null,null,null," (i) ","Interest Income",24227.93,{"$f":"+IF(COUNT(F17),+F17,\"\")","v":24227.93},null,null,null,"InterestEarned",null,null,null,null,null,null,null,{"$f":"+IF(COUNT(F17),+F17,\"\")","v":24227.93}]
[null,null,null,"(ii)","Dividend Income",0,0,null,null,null,"DividendIncome",null,null,null,null,null,null,null,{"$f":"+IF(COUNT(F18),+F18,\"\")","v":0}]
[null,null,null,"(iii)","Rental Income",52.5,52.5,null,null,null,"RentalIncome",null,null,null,null,null,null,null,52.5]
[null,null,null,"(iv)","Fees and commission Income",45.1,45.1,null,null,null,"FeesAndCommissionIncome",null,null,null,null,null,null,null,45.1]
[null,null,null,"(v)","Net gain on fair value changes",1.61,1.61,null,null,null,"NetGainOnFairValueChanges",null,null,null,null,null,null,null,1.61]
[null,null,null,"(vi)","Net gain on derecognition of financial instruments under amortised cost category",0,0,null,null,null,"NetGainOnDerecognitionOfFinancialInstrumentsUnderAmortisedCostCategory",null,null,null,null,null,null,null,0]
[null,null,null,"(vii)","Sale of products (including Excise Duty)",0,0,null,null,null,"RevenueFromSaleOfProduct",null,null,null,null,null,null,null,0]
[null,null,null,"(viii)","Sale of services",312.93,312.93,null,null,null,"RevenueFromSaleOfServices",null,null,null,null,null,null,null,312.93]
[null,null,null,"(ix)","Other revenue from operations",null,null,null,null,null,null,null,null,null,null,null,null,null,""]
[null,null,null,1,null,null,{"$f":"+IF(COUNT(F26),+F26,\"\")","v":""},null,null,null,null,null,null,null,null,null,null,null,""]
[null,null,null,2,null,null,"",null,null,null,null,null,null,null,null,null,null,null,""]
[null,null,null,3,null,null,"",null,null,null,null,null,null,null,null,null,null,null,""]
[null,null,null,4,null,null,"",null,null,null,null,null,null,null,null,null,null,null,""]
[null,null,null,5,null,null,"",null,null,null,null,null,null,null,null,null,null,null,""]
[null,null,null,6,null,null,"",null,null,null,null,null,null,null,null,null,null,null,""]
[null,null,null,7,null,null,"",null,null,null,null,null,null,null,null,null,null,null,""]
[null,null,null,8,null,null,"",null,null,null,null,null,null,null,null,null,null,null,""]
[null,null,null,9,null,null,"",null,null,null,null,null,null,null,null,null,null,null,""]
[null,null,null,10,null,null,"",null,null,null,null,null,null,null,null,null,null,null,""]
[null,null,null,null,"Total other revenue from operations",{"$f":"+IF(COUNT(F26:F35),ROUND(SUM(F26:F35),3),\"\")","v":""},{"$f":"+IF(COUNT(G26:G35),ROUND(SUM(G26:G35),3),\"\")","v":""},null,null,null,"OtherRevenueFromOperations",null,null,null,null,null,null,null,""]
[null,null,null,null,"Total Revenue From Operations",{"$f":"+IF(COUNT(F17:F24,F36),ROUND(SUM(F17:F24)+ SUM(F36),3),\"\")","v":24640.07},{"$f":"+IF(COUNT(G17:G24,G36),ROUND(SUM(G17:G24)+ SUM(G36),3),\"\")","v":24640.07},null,null,null,"RevenueFromOperations",null,null,null,null,null,null,null,24640.07]
[null,null,null,null,"Other income",37.17,{"$f":"+IF(COUNT(F38),+F38,\"\")","v":37.17},null,null,null,"OtherIncome",null,null,null,null,null,null,null,37.17]
[null,null,null,null,"Total income",{"$f":"+IF(COUNT(F37:F38),ROUND(SUM(F37:F38),3),\"\")","v":24677.24},{"$f":"+IF(COUNT(G37:G38),ROUND(SUM(G37:G38),3),\"\")","v":24677.24},null,null,null,"Income",null,null,null,null,null,null,null,24677.24]
[null,null,null,2,"Expenses",null,null,null,null,null,null,null,null,null,null,null,null,null,""]
[null,null,null,null,"Cost of materials consumed",0,{"$f":"+IF(COUNT(F41),+F41,\"\")","v":0},null,null,null,"CostOfMaterialsConsumed",null,null,null,null,null,null,null,0]
[null,null,null,null,"Purchases of stock-in-trade",0,0,null,null,null,"PurchasesOfStockInTrade",null,null,null,null,null,null,null,0]
[null,null,null,null,"Changes in inventories of finished goods, work-in-progress and stock-in-trade",0,0,null,null,null,"ChangesInInventoriesOfFinishedGoodsWorkInProgressAndStockInTrade",null,null,null,null,null,null,null,0]
[null,null,null,null,"Employee benefit expense  ",5235.49,5235.49,null,null,null,"EmployeeBenefitExpense",null,null,null,null,null,null,null,5235.49]
[null,null,null,null,"Finance costs",13379.97,13379.97,null,null,null,"FinanceCosts",null,null,null,null,null,null,null,13379.97]
[null,null,null,null,"Depreciation, depletion and amortisation expense",280.29000000000002,280.29000000000002,null,null,null,"DepreciationDepletionAndAmortisationExpense",null,null,null,null,null,null,null,280.29000000000002]
[null,null,null,null,"Fees and commission expense",0,0,null,null,null,"FeesAndCommissionExpense",null,null,null,null,null,null,null,0]
[null,null,null,null,"Net loss on fair value changes",0,0,null,null,null,"NetLossOnFairValueChanges",null,null,null,null,null,null,null,0]
[null,null,null,null,"Net loss on derecognition of financial instruments under amortised cost category",0,0,null,null,null,"NetLossOnDerecognitionOfFinancialInstrumentsUnderAmortisedCostCategory",null,null,null,null,null,null,null,0]
[null,null,null,null,"Impairment on financial instruments",16.03,16.03,null,null,null,"ImpairmentOnFinancialInstruments",null,null,null,null,null,null,null,16.03]
[null,null,null,"(f)","Other expenses",null,null,null,null,null,null,null,null,null,null,null,null,null,""]
[null,null,null,1,"Other expenses",3062.18,{"$f":"+IF(COUNT(F52),+F52,\"\")","v":3062.18},null,null,null,null,null,null,null,null,null,null,null,3062.18]
[null,null,null,2,null,null,"",null,null,null,null,null,null,null,null,null,null,null,""]
[null,null,null,3,null,null,"",null,null,null,null,null,null,null,null,null,null,null,""]
[null,null,null,4,null,null,"",null,null,null,null,null,null,null,null,null,null,null,""]
[null,null,null,5,null,null,"",null,null,null,null,null,null,null,null,null,null,null,""]
[null,null,null,6,null,null,"",null,null,null,null,null,null,null,null,null,null,null,""]
[null,null,null,7,null,null,"",null,null,null,null,null,null,null,null,null,null,null,""]
[null,null,null,8,null,null,"",null,null,null,null,null,null,null,null,null,null,null,""]
[null,null,null,9,null,null,"",null,null,null,null,null,null,null,null,null,null,null,""]
[null,null,null,10,null,null,"",null,null,null,null,null,null,null,null,null,null,null,""]
[null,null,null,null,"Total other expenses",{"$f":"+IF(COUNT(F52:F61),ROUND(SUM(F52:F61),3),\"\")","v":3062.18},{"$f":"+IF(COUNT(G52:G61),ROUND(SUM(G52:G61),3),\"\")","v":3062.18},null,null,null,"OtherExpenses",null,null,null,null,null,null,null,3062.18]
[null,null,null,null,"Total  expenses",{"$f":"+IF(COUNT(F41:F50,F62),SUM(F62,F41:F50),\"\")","v":21973.96},{"$f":"+IF(COUNT(G41:G50,G62),SUM(G62,G41:G50),\"\")","v":21973.96},null,null,null,"Expenses",null,null,null,null,null,null,null,21973.96]
[null,null,null,3,"Total profit before exceptional items and tax",{"$f":"+IF(COUNT(F63,F39),ROUND(SUM((F39)-(F63)),3),\"\")","v":2703.28},{"$f":"+IF(COUNT(G63,G39),ROUND(SUM((G39)-(G63)),3),\"\")","v":2703.28},null,null,null,"ProfitBeforeExceptionalItemsAndTax",null,null,null,null,null,null,null,2703.28]
[null,null,null,4,"Exceptional items ",0,{"$f":"+IF(COUNT(F65),+F65,\"\")","v":0},null,null,null,"ExceptionalItemsBeforeTax",null,null,null,null,null,null,null,0]
[null,null,null,5,"Total profit before tax",{"$f":"IF(COUNT(F64,F65),SUM((F64)+(F65)),\"\")","v":2703.28},{"$f":"IF(COUNT(G64,G65),SUM((G64)+(G65)),\"\")","v":2703.28},null,null,null,"ProfitBeforeTax",null,null,null,null,null,null,null,2703.28]
[null,null,null,7,"Tax expense",null,null,null,null,null,null,null,null,null,null,null,null,null,""]
[null,null,null,8,"Current tax",472.43,{"$f":"+IF(COUNT(F68),+F68,\"\")","v":472.43},null,null,null,"CurrentTax",null,null,null,null,null,null,null,472.43]
[null,null,null,9,"Deferred tax",64.47,{"$f":"+IF(COUNT(F69),+F69,\"\")","v":64.47},null,null,null,"DeferredTax",null,null,null,null,null,null,null,64.47]
[null,null,null,10,"Total tax expenses",{"$f":"IF(COUNT(F68:F69),SUM(F68:F69),\"\")","v":536.9},{"$f":"IF(COUNT(G68:G69),SUM(G68:G69),\"\")","v":536.9},null,null,null,"TaxExpense",null,null,null,null,null,null,null,536.9]
[null,null,null,11,"Net movement in regulatory deferral account balances related to profit or loss and the related deferred tax movement",52,78,null,null,null,null,null,null,null,null,null,null,null,52]
[null,null,null,14,"Net Profit Loss for the period from continuing operations",{"$f":"+IF(COUNT(F66,F70),ROUND(SUM((F66)-SUM(F70)),3),\"\")","v":2166.38},{"$f":"+IF(COUNT(G66,G70),ROUND(SUM((G66)-SUM(G70)),3),\"\")","v":2166.38},null,null,null,"ProfitLossForPeriodFromContinuingOperations",null,null,null,null,null,null,null,2166.38]
[null,null,null,15,"Profit (loss) from discontinued operations before tax",0,{"$f":"+IF(COUNT(F73),+F73,\"\")","v":0},null,null,null,"ProfitLossFromDiscontinuedOperationsBeforeTax",null,null,null,null,null,null,null,0]
[null,null,null,16,"Tax expense of discontinued operations",0,{"$f":"+IF(COUNT(F74),+F74,\"\")","v":0},null,null,null,"TaxExpenseOfDiscontinuedOperations",null,null,null,null,null,null,null,0]
[null,null,null,17,"Net profit (loss) from discontinued operation after tax",{"$f":"+IF(COUNT(F73:F74),ROUND(SUM(F73)-SUM(F74),3),\"\")","v":0},{"$f":"+IF(COUNT(G73:G74),ROUND(SUM(G73)-SUM(G74),3),\"\")","v":0},null,null,null,"ProfitLossFromDiscontinuedOperationsAfterTax",null,null,null,null,null,null,null,0]
[null,null,null,19,"Share of profit (loss) of associates and joint ventures accounted for using equity method",0,{"$f":"+IF(COUNT(F76),+F76,\"\")","v":0},null,null,null,"ShareOfProfitLossOfAssociatesAndJointVenturesAccountedForUsingEquityMethod",null,null,null,null,null,null,null,0]
[null,null,null,21,"Total profit (loss) for period",{"$f":"+IF(COUNT(F72,F75,F76),ROUND(SUM((F72)+SUM(F75)+SUM(F76)),3),\"\")","v":2166.38},{"$f":"+IF(COUNT(G72,G75,G76),ROUND(SUM((G72)+SUM(G75)+SUM(G76)),3),\"\")","v":2166.38},null,null,null,"ProfitLossForPeriod",null,null,null,null,null,null,null,2166.38]
[null,null,null,22,"Other comprehensive income net of taxes",0,{"$f":"+IF(COUNT(F78),+F78,\"\")","v":0},null,null,null,"OtherComprehensiveIncomeNetOfTaxes",null,null,null,null,null,null,null,0]
[null,null,null,23,"Total Comprehensive Income for the period",{"$f":"+IF(COUNT(F77,F78),ROUND(SUM((F77)+SUM(F78)),3),\"\")","v":2166.38},{"$f":"+IF(COUNT(G77,G78),ROUND(SUM((G77)+SUM(G78)),3),\"\")","v":2166.38},null,null,null,"ComprehensiveIncomeForThePeriod",null,null,null,null,null,null,null,2166.38]
[null,null,null,24,"Total profit or loss, attributable to",null,null,null,null,null,null,null,null,null,null,null,null,null,""]
[null,null,null,null,"Profit or loss, attributable to owners of parent",null,null,null,null,null,"ProfitOrLossAttributableToOwnersOfParent",null,null,null,null,null,null,null,""]
[null,null,null,null,"Total profit or loss, attributable to non-controlling interests",null,null,null,null,null,"ProfitOrLossAttributableToNonControllingInterests",null,null,null,null,null,null,null,{"$f":"+IF(COUNT(F82),+F82,\"\")","v":""}]
[null,null,null,25,"Total Comprehensive income for the period attributable to",null,null,null,null,null,null,null,null,null,null,null,null,null,""]
[null,null,null,null,"Comprehensive income for the period attributable to owners of parent",0,{"$f":"+IF(COUNT(F84),+F84,\"\")","v":0},null,null,null,"ComprehensiveIncomeForThePeriodAttributableToOwnersOfParent",null,null,null,null,null,null,null,0]
[null,null,null,null,"Total comprehensive income for the period attributable to owners of parent non-controlling interests",0,{"$f":"+IF(COUNT(F85),+F85,\"\")","v":0},null,null,null,"ComprehensiveIncomeForThePeriodAttributableToOwnersOfParentNonControllingInterests",null,null,null,null,null,null,null,0]
[null,null,null,26,"Details of equity share capital",null,null,null,null,null,null,null,null,null,null,null,null,null,""]
[null,null,null,null,"Paid-up equity share capital",24952.54,{"$f":"+IF(COUNT(F87),+F87,\"\")","v":24952.54},null,null,null,"PaidUpValueOfEquityShareCapital",null,null,null,null,null,null,null,24952.54]
[null,null,null,null,"Face value of equity share capital",100,{"$f":"+IF(COUNT(F88),+F88,\"\")","v":100},null,null,null,"FaceValueOfEquityShareCapital",null,null,null,null,null,null,null,100]
[null,null,null,27,"Details of debt securities",null,null,null,null,null,null,null,null,null,null,null,null,null,""]
[null,null,null,28,"Reserves excluding revaluation reserve",null,{"$f":"+IF(COUNT(F90),+F90,\"\")","v":""},null,null,null,"ReserveExcludingRevaluationReserves",null,null,null,null,null,null,null,""]
[null,null,null,29,"Earnings per share",null,null,null,null,null,null,null,null,null,null,null,null,null,""]
[null,null,null,"i","Earnings per equity share for continuing operations",null,null,null,null,null,null,null,null,null,null,null,null,null,""]
[null,null,null,null,"Basic earnings per share from continuing operations",17.36,{"$f":"+IF(COUNT(F93),+F93,\"\")","v":17.36},null,null,null,"BasicEarningsLossPerShareFromContinuingOperations",null,null,null,null,null,null,null,17.36]
[null,null,null,null,"Diluted earnings per share from continuing operations",17.36,{"$f":"+IF(COUNT(F94),+F94,\"\")","v":17.36},null,null,null,"DilutedEarningsLossPerShareFromContinuingOperations",null,null,null,null,null,null,null,17.36]
[null,null,null,"ii","Earnings per equity share for discontinued operations",null,null,null,null,null,null,null,null,null,null,null,null,null,""]
[null,null,null,null,"Basic earnings per share from discontinued operations",0,{"$f":"+IF(COUNT(F96),+F96,\"\")","v":0},null,null,null,"BasicEarningsLossPerShareFromDiscontinuedOperations",null,null,null,null,null,null,null,0]
[null,null,null,null,"Diluted earnings per share from discontinued operations",0,{"$f":"+IF(COUNT(F97),+F97,\"\")","v":0},null,null,null,"DilutedEarningsLossPerShareFromDiscontinuedOperations",null,null,null,null,null,null,null,0]
[null,null,null,"ii","Earnings per equity share",null,null,null,null,null,null,null,null,null,null,null,null,null,""]
[null,null,null,null,"Basic earnings per share",{"$f":"+IF(COUNT(F93,F96),SUM(F93,F96),\"\")","v":17.36},{"$f":"+IF(COUNT(G93,G96),SUM(G93,G96),\"\")","v":17.36},null,null,null,"BasicEarningsLossPerShareFromContinuingAndDiscontinuedOperations",null,null,null,null,null,null,null,17.36]
[null,null,null,null,"Diluted earnings per share",{"$f":"+IF(COUNT(F94,F97),SUM(F94,F97),\"\")","v":17.36},{"$f":"+IF(COUNT(G94,G97),SUM(G94,G97),\"\")","v":17.36},null,null,null,"DilutedEarningsLossPerShareFromContinuingAndDiscontinuedOperations",null,null,null,null,null,null,null,17.36]
[null,null,null,30,"Debt equity ratio",5.03,{"$f":"+IF(COUNT(F101),+F101,\"\")","v":5.03},null,null,null,"DebtEquityRatio",null,null,null,null,null,null,null,5.03]
[null,null,null,31,"Debt service coverage ratio",0,{"$f":"+IF(COUNT(F102),+F102,\"\")","v":0},null,null,null,"DebtServiceCoverageRatio",null,null,null,null,null,null,null,0]
[null,null,null,32,"Interest service coverage ratio",0,{"$f":"+IF(COUNT(F103),+F103,\"\")","v":0},null,null,null,"InterestServiceCoverageRatio",null,null,null,null,null,null,null,0]
[null,null,null,33,"Disclosure of notes on financial results",null,null,null,null,null,"DisclosureOfNotesOnFinancialResultsExplanatoryTextBlock",null,null,null,null,null,null,null,""]

{"sheet":"Cash Flow Direct","index":3,"n_rows":91,"n_cols":10,"rows_kept":91,"cut":false,"hidden":true,"merged":[[7,3,7,5],[8,3,8,4],[13,4,13,5]]}
[]
[]
[]
[]
[]
[]
[]
[null,null,null,"Cash flow statement,direct"]
[null,null,null,"Particulars",null,{"$f":"IF('General Info'!E19=\"Half yearly\",\"6 months ended \n(dd-mm-yyyy)\",\"Year ended \n(dd-mm-yyyy)\")","v":"6 months ended \n(dd-mm-yyyy)"}]
[null,null,null,"A","Date of start of reporting period","01-04-2022"]
[null,null,null,"B","Date of end of reporting period","30-09-2022"]
[null,null,null,"C","Whether results are audited or unaudited",{"$f":"+IF(COUNTA('General Info'!E21),'General Info'!E21,\"\")","v":"Unaudited"}]
[null,null,null,"D","Nature of report standalone or consolidated",{"$f":"+IF(COUNTA('General Info'!E20),'General Info'!E20,\"\")","v":"Standalone"}]
[null,null,null,"Part I","Blue color marked fields are non-mandatory.                   "]
[null,null,null,null,"Statement of cash flows",null,null,null,null,"Statement of cash flows [Abstract]"]
[null,null,null,null,"Whether cash flow statement is applicable on company",null,null,null,null,"Cash flows from used in operating activities [Abstract]"]
[null,null,null,null,"Cash flows from used in operating activities",null,null,null,null,"Cash flows from used in operating activities [Abstract]"]
[null,null,null,null,"Classes of cash receipts from operating activities",null,null,null,null,"Classes of cash receipts from operating activities [Abstract]"]
[null,null,null,null,"Receipts from sales of goods and rendering of services",null,null,null,null,"ReceiptsFromSalesOfGoodsAndRenderingOfServices"]
[null,null,null,null,"Receipts from royalties fees, commissions and other revenue",null,null,null,null,"ReceiptsFromRoyaltiesFeesCommissionsAndOtherRevenue"]
[null,null,null,null,"Receipts from contracts held for dealing or trading purpose",null,null,null,null,"ReceiptsFromContractsHeldForDealingOrTradingPurpose"]
[null,null,null,null,"Receipts from premiums and claims annuities and other policy benefits",null,null,null,null,"ReceiptsFromPremiumsAndClaimsAnnuitiesAndOtherPolicyBenefits"]
[null,null,null,null,"Receipts from rents and subsequent sales of assets held for rental to others and subsequently held for sale",null,null,null,null,"ReceiptsFromRentsAndSubsequentSalesOfAssetsHeldForRentalToOthersAndSubsequentlyHeldForSale"]
[null,null,null,null,"Other cash receipts from operating activities",null,null,null,null,"OtherCashReceiptsFromOperatingActivities"]
[null,null,null,null,"Classes of cash payments from operating activities",null,null,null,null,"ClassesOfCashPaymentsFromOperatingActivitiesAbstract"]
[null,null,null,null,"Payments to suppliers for goods and services",null,null,null,null,"PaymentsToSuppliersForGoodsAndServices"]
[null,null,null,null,"Payments from contracts held for dealing or trading purpose",null,null,null,null,"PaymentsFromContractsHeldForDealingOrTradingPurpose"]
[null,null,null,null,"Payments to and on behalf of employees",null,null,null,null,"PaymentsToAndOnBehalfOfEmployees"]
[null,null,null,null,"Payments for premiums and claims, annuities and other policy benefits",null,null,null,null,"PaymentsForPremiumsAndClaimsAnnuitiesAndOtherPolicyBenefits"]
[null,null,null,null,"Payments to manufacture or acquire assets held for rental to others and subsequently held for sale",null,null,null,null,"PaymentsToManufactureOrAcquireAssetsHeldForRentalToOthersAndSubsequentlyHeldForSale"]
[null,null,null,null,"Other cash payments from operating activities",null,null,null,null,"OtherCashPaymentsFromOperatingActivities"]
[null,null,null,null,"Net cash flows from (used in) operations",{"$f":"IF(COUNT(F19:F31),ROUND(SUM(F19:F24)-SUM(F26:F31),3),\"\")","v":""},null,null,null,"CashFlowsFromUsedInOperations"]
[null,null,null,null,"Dividends received",null,null,null,null,"DividendsReceivedClassifiedAsOperatingActivities"]
[null,null,null,null,"Interest paid",null,null,null,null,"InterestPaidClassifiedAsOperatingActivities"]
[null,null,null,null,"Interest received",null,null,null,null,"InterestReceivedClassifiedAsOperatingActivities"]
[null,null,null,null,"Income taxes paid (refund)",null,null,null,null,"IncomeTaxesPaidRefundClassifiedAsOperatingActivities"]
[null,null,null,null,"Other inflows (outflows) of cash",null,null,null,null,"OtherInflowsOutflowsOfCashClassifiedAsOperatingActivities"]
[null,null,null,null,"Net cash flows from (used in) operating activities",{"$f":"IF(COUNT(F32:F37),ROUND(SUM(F32)+SUM(F33)-SUM(F34)+SUM(F35)-SUM(F36)+SUM(F37),3),\"\")","v":""},null,null,null,"CashFlowsFromUsedInOperatingActivities"]
[null,null,null,null,"Cash flows from used in investing activities",null,null,null,null,"CashFlowsFromUsedInInvestingActivitiesAbstract"]
[null,null,null,null,"Cash flows from losing control of subsidiaries or other businesses",null,null,null,null,"CashFlowsFromLosingControlOfSubsidiariesOrOtherBusinessesClassifiedAsInvestingActivities"]
[null,null,null,null,"Cash flows used in obtaining control of subsidiaries or other businesses",null,null,null,null,"CashFlowsUsedInObtainingControlOfSubsidiariesOrOtherBusinessesClassifiedAsInvestingActivities"]
[null,null,null,null,"Other cash receipts from sales of equity or debt instruments of other entities",null,null,null,null,"OtherCashReceiptsFromSalesOfEquityOrDebtInstrumentsOfOtherEntitiesClassifiedAsInvestingActivities"]
[null,null,null,null,"Other cash payments to acquire equity or debt instruments of other entities",null,null,null,null,"OtherCashPaymentsToAcquireEquityOrDebtInstrumentsOfOtherEntitiesClassifiedAsInvestingActivities"]
[null,null,null,null,"Other cash receipts from sales of interests in joint ventures",null,null,null,null,"OtherCashReceiptsFromSalesOfInterestsInJointVenturesClassifiedAsInvestingActivities"]
[null,null,null,null,"Other cash payments to acquire interests in joint ventures",null,null,null,null,"OtherCashPaymentsToAcquireInterestsInJointVenturesClassifiedAsInvestingActivities"]
[null,null,null,null,"Proceeds from sales of property, plant and equipment",null,null,null,null,"ProceedsFromSalesOfPropertyPlantAndEquipmentClassifiedAsInvestingActivities"]
[null,null,null,null,"Purchase of property, plant and equipment",null,null,null,null,"PurchaseOfPropertyPlantAndEquipmentClassifiedAsInvestingActivities"]
[null,null,null,null,"Proceeds from sales of investment property",null,null,null,null,"ProceedsFromSalesOfInvestmentPropertyClassifiedAsInvestingActivities"]
[null,null,null,null,"Purchase of investment property",null,null,null,null,"PurchaseOfInvestmentPropertyClassifiedAsInvestingActivities"]
[null,null,null,null,"Proceeds from sales of goodwill",null,null,null,null,"ProceedsFromSalesOfGoodwillClassifiedAsInvestingActivities"]
[null,null,null,null,"Purchase of goodwill",null,null,null,null,"PurchaseOfGoodwillClassifiedAsInvestingActivities"]
[null,null,null,null,"Proceeds from sales of intangible assets",null,null,null,null,"ProceedsFromSalesOfIntangibleAssetsClassifiedAsInvestingActivities"]
[null,null,null,null,"Purchase of intangible assets",null,null,null,null,"PurchaseOfIntangibleAssetsClassifiedAsInvestingActivities"]
[null,null,null,null,"Proceeds from biological assets other than bearer plants",null,null,null,null,"ProceedsFromBiologicalAssetsOtherThanBearerPlantsClassifiedAsInvestingActivities"]
[null,null,null,null,"Purchase of biological assets other than bearer plants",null,null,null,null,"PurchaseOfBiologicalAssetsOtherThanBearerPlantsClassifiedAsInvestingActivities"]
[null,null,null,null,"Proceeds from sales of other long-term assets",null,null,null,null,"ProceedsFromSalesOfOtherLongTermAssetsClassifiedAsInvestingActivities"]
[null,null,null,null,"Purchase of other long-term assets",null,null,null,null,"PurchaseOfOtherLongTermAssetsClassifiedAsInvestingActivities"]
[null,null,null,null,"Cash advances and loans made to other parties",null,null,null,null,"CashAdvancesAndLoansMadeToOtherPartiesClassifiedAsInvestingActivities"]
[null,null,null,null,"Cash receipts from repayment of advances and loans made to other parties",null,null,null,null,"CashReceiptsFromRepaymentOfAdvancesAndLoansMadeToOtherPartiesClassifiedAsInvestingActivities"]
[null,null,null,null,"Cash payments for future contracts, forward contracts, option contracts and swap contracts",null,null,null,null,"CashPaymentsForFutureContractsForwardContractsOptionContractsAndSwapContractsClassifiedAsInvestingActivities"]
[null,null,null,null,"Cash receipts from future contracts, forward contracts, option contracts and swap contracts",null,null,null,null,"CashReceiptsFromFutureContractsForwardContractsOptionContractsAndSwapContractsClassifiedAsInvestingActivities"]
[null,null,null,null,"Dividends received",null,null,null,null,"DividendsReceivedClassifiedAsInvestingActivities"]
[null,null,null,null,"Interest received",null,null,null,null,"InterestReceivedClassifiedAsInvestingActivities"]
[null,null,null,null,"Income taxes paid (refund)",null,null,null,null,"IncomeTaxesPaidRefundClassifiedAsInvestingActivities"]
[null,null,null,null,"Other inflows (outflows) of cash",null,null,null,null,"OtherInflowsOutflowsOfCashClassifiedAsInvestingActivities"]
[null,null,null,null,"Proceeds from government grants",null,null,null,null,"ProceedsFromGovernmentGrantsClassifiedAsInvestingActivities"]
[null,null,null,null,"Net cash flows from (used in) investing activities",{"$f":"IF(COUNT(F40:F66),ROUND(SUM(F40)-SUM(F41)+SUM(F42)-SUM(F43)+SUM(F44)-SUM(F45)+SUM(F46)-SUM(F47)+SUM(F48)-SUM(F49)+SUM(F50)-SUM(F51)+SUM(F52)-SUM(F53)+SUM(F54)-SUM(F55)+SUM(F56)-SUM(F57)-SUM(F58)+SUM(F59)-SUM(F60)+SUM(F61)+SUM(F62)+SUM(F63)-SUM(F64)+SUM(F65)+SUM(F66),3),\"\")","v":""},null,null,null,"CashFlowsFromUsedInInvestingActivities"]
[null,null,null,null,"Cash flows from used in financing activities",null,null,null,null,"CashFlowsFromUsedInFinancingActivitiesAbstract"]
[null,null,null,null,"Proceeds from changes in ownership interests in subsidiaries that do not result in loss of control",null,null,null,null,"ProceedsFromChangesInOwnershipInterestsInSubsidiariesThatDoNotResultInLossOfControl"]
[null,null,null,null,"Payments from changes in ownership interests in subsidiaries that do not result in loss of control",null,null,null,null,"PaymentsFromChangesInOwnershipInterestsInSubsidiariesThatDoNotResultInLossOfControl"]
[null,null,null,null,"Proceeds from issuing shares",null,null,null,null,"ProceedsFromIssuingSharesClassifiedAsFinancingActivities"]
[null,null,null,null,"Proceeds from issuing other equity instruments",null,null,null,null,"ProceedsFromIssuingOtherEquityInstruments"]
[null,null,null,null,"Payments to acquire or redeem entity's shares",null,null,null,null,"PaymentsToAcquireOrRedeemEntitysShares"]
[null,null,null,null,"Payments of other equity instruments",null,null,null,null,"PaymentsOfOtherEquityInstruments"]
[null,null,null,null,"Proceeds from exercise of stock options",null,null,null,null,"ProceedsFromExerciseOfStockOptions"]
[null,null,null,null,"Proceeds from issuing debentures notes bonds etc",null,null,null,null,"ProceedsFromIssuingDebenturesNotesBondsEtc"]
[null,null,null,null,"Proceeds from borrowings",null,null,null,null,"ProceedsFromBorrowingsClassifiedAsFinancingActivities"]
[null,null,null,null,"Repayments of borrowings",null,null,null,null,"RepaymentsOfBorrowingsClassifiedAsFinancingActivities"]
[null,null,null,null,"Payments of finance lease liabilities",null,null,null,null,"PaymentsOfFinanceLeaseLiabilitiesClassifiedAsFinancingActivities"]
[null,null,null,null,"Payments of lease liabilities",null,null,null,null,"PaymentsOfLeaseLiabilitiesClassifiedAsFinancingActivities"]
[null,null,null,null,"Dividends paid",null,null,null,null,"DividendsPaidClassifiedAsFinancingActivities"]
[null,null,null,null,"Interest paid",null,null,null,null,"InterestPaidClassifiedAsFinancingActivities"]
[null,null,null,null,"Income taxes paid (refund)",null,null,null,null,"IncomeTaxesPaidRefundClassifiedAsFinancingActivities"]
[null,null,null,null,"Other inflows (outflows) of cash",null,null,null,null,"OtherInflowsOutflowsOfCashClassifiedAsFinancingActivities"]
[null,null,null,null,"Net cash flows from (used in) financing activities",{"$f":"IF(COUNT(F69:F84),ROUND(SUM(F69)-SUM(F70)+SUM(F71)+SUM(F72)-SUM(F73)-SUM(F74)+SUM(F75)+SUM(F76)+SUM(F77)-SUM(F78)-SUM(F79)-SUM(F80)-SUM(F81)-SUM(F82)-SUM(F83)+SUM(F84),3),\"\")","v":""},null,null,null,"CashFlowsFromUsedInFinancingActivities"]
[null,null,null,null,"Net increase (decrease) in cash and cash equivalents before effect of exchange rate changes",{"$f":"IF(COUNT(F38:F85),ROUND(SUM(F38)+SUM(F67)+SUM(F85),3),\"\")","v":""},null,null,null,"IncreaseDecreaseInCashAndCashEquivalentsBeforeEffectOfExchangeRateChanges"]
[null,null,null,null,"Effect of exchange rate changes on cash and cash equivalents",null,null,null,null,"EffectOfExchangeRateChangesOnCashAndCashEquivalentsAbstract"]
[null,null,null,null,"Effect of exchange rate changes on cash and cash equivalents",null,null,null,null,"EffectOfExchangeRateChangesOnCashAndCashEquivalents"]
[null,null,null,null,"Net increase (decrease) in cash and cash equivalents",{"$f":"IF(COUNT(F86,F88),ROUND(SUM(F86)+SUM(F88),3),\"\")","v":""},null,null,null,"IncreaseDecreaseInCashAndCashEquivalents"]
[null,null,null,null,"Cash and cash equivalents cash flow statement at beginning of period",null,null,null,null,"CashAndCashEquivalentsCashFlowStatement"]
[null,null,null,null,"Cash and cash equivalents cash flow statement at end of period",{"$f":"+IF(COUNT(F89:F90),ROUND(SUM(F89)+SUM(F90),3),\"\")","v":""},null,null,null,"CashAndCashEquivalentsCashFlowStatement"]

{"sheet":"Cash Flow Indirect","index":4,"n_rows":113,"n_cols":10,"rows_kept":113,"cut":false,"hidden":false,"merged":[[7,3,7,5],[8,3,8,4],[13,4,13,5]]}
[]
[]
[]
[]
[]
[]
[]
[null,null,null,"Cash flow statement, indirect"]
[null,null,null,"Particulars",null,{"$f":"IF('General Info'!E19=\"Half yearly\",\"6 months ended \n(dd-mm-yyyy)\",\"Year ended \n(dd-mm-yyyy)\")","v":"6 months ended \n(dd-mm-yyyy)"}]
[null,null,null,"A","Date of start of reporting period","01-04-2022"]
[null,null,null,"B","Date of end of reporting period","30-09-2022"]
[null,null,null,"C","Whether results are audited or unaudited",{"$f":"+IF(COUNTA('General Info'!E21),'General Info'!E21,\"\")","v":"Unaudited"}]
[null,null,null,"D","Nature of report standalone or consolidated",{"$f":"+IF(COUNTA('General Info'!E20),'General Info'!E20,\"\")","v":"Standalone"}]
[null,null,null,"Part I","Blue color marked fields are non-mandatory.                   "]
[null,null,null,null,"Statement of cash flows"]
[null,null,null,null,"Whether cash flow statement is applicable on company"]
[null,null,null,null,"Cash flows from used in operating activities"]
[null,null,null,null,"Profit before tax",{"$f":"+IF(COUNTA('Financial Results'!$G$66),'Financial Results'!$G$66,\"\")","v":2703.28},null,null,null,"ProfitBeforeTax"]
[null,null,null,null,"Adjustments for reconcile profit (loss)",null,null,null,null,"AdjustmentsForReconcileProfitLossAbstract"]
[null,null,null,null,"Adjustments for finance costs",13379.97,null,null,null,"AdjustmentsForFinanceCosts"]
[null,null,null,null,"Adjustments for decrease (increase) in inventories",0,null,null,null,"AdjustmentsForDecreaseIncreaseInInventories"]
[null,null,null,null,"Adjustments for decrease (increase) in trade receivables, current",0,null,null,null,"AdjustmentsForDecreaseIncreaseInTradeReceivablesCurrent"]
[null,null,null,null,"Adjustments for decrease (increase) in trade receivables, non-current",0,null,null,null,"AdjustmentsForDecreaseIncreaseInTradeReceivablesNoncurrent"]
[null,null,null,null,"Adjustments for decrease (increase) in other current assets",0,null,null,null,"AdjustmentsForDecreaseIncreaseInOtherCurrentAssets"]
[null,null,null,null,"Adjustments for decrease (increase) in other non-current assets",0,null,null,null,"AdjustmentsForDecreaseIncreaseInOtherNoncurrentAssets"]
[null,null,null,null,"Adjustments for other financial assets, non-current",-161.5,null,null,null,"AdjustmentsForOtherFinancialAssetsNoncurrent"]
[null,null,null,null,"Adjustments for other financial assets, current",-29205.040000000001,null,null,null,"AdjustmentsForOtherFinancialAssetsCurrent"]
[null,null,null,null,"Adjustments for other bank balances",-9454.7999999999993,null,null,null,"AdjustmentsForOtherBankBalances"]
[null,null,null,null,"Adjustments for increase (decrease) in trade payables, current",0,null,null,null,"AdjustmentsForIncreaseDecreaseInTradePayablesCurrent"]
[null,null,null,null,"Adjustments for increase (decrease) in trade payables, non-current",0,null,null,null,"AdjustmentsForIncreaseDecreaseInTradePayablesNoncurrent"]
[null,null,null,null,"Adjustments for increase (decrease) in other current liabilities",0,null,null,null,"AdjustmentsForIncreaseDecreaseInOtherCurrentLiabilities"]
[null,null,null,null,"Adjustments for increase (decrease) in other non-current liabilities",0,null,null,null,"AdjustmentsForIncreaseDecreaseInOtherNoncurrentLiabilities"]
[null,null,null,null,"Adjustments for depreciation and amortisation expense",280.29000000000002,null,null,null,"AdjustmentsForDepreciationAndAmortisationExpense"]
[null,null,null,null,"Adjustments for impairment loss reversal of impairment loss recognised in profit or loss",16.03,null,null,null,"AdjustmentsForImpairmentLossReversalOfImpairmentLossRecognisedInProfitOrLoss"]
[null,null,null,null,"Adjustments for provisions, current",0,null,null,null,"AdjustmentsForProvisionsCurrent"]
[null,null,null,null,"Adjustments for provisions, non-current",-37.909999999999997,null,null,null,"AdjustmentsForProvisionsNoncurrent"]
[null,null,null,null,"Adjustments for other financial liabilities, current",0,null,null,null,"AdjustmentsForOtherFinancialLiabilitiesCurrent"]
[null,null,null,null,"Adjustments for other financial liabilities, non-current",17.399999999999999,null,null,null,"AdjustmentsForOtherFinancialLiabilitiesNoncurrent"]
[null,null,null,null,"Adjustments for unrealised foreign exchange losses gains",0,null,null,null,"AdjustmentsForUnrealisedForeignExchangeLossesGains"]
[null,null,null,null,"Adjustments for dividend income",0,null,null,null,"AdjustmentsForDividendIncome"]
[null,null,null,null,"Adjustments for interest income",0,null,null,null,"AdjustmentsForInterestIncome"]
[null,null,null,null,"Adjustments for share-based payments",0,null,null,null,"AdjustmentsForSharebasedPayments"]
[null,null,null,null,"Adjustments for fair value losses (gains)",-1.61,null,null,null,"AdjustmentsForFairValueGainsLosses"]
[null,null,null,null,"Adjustments for undistributed profits of associates",0,null,null,null,"AdjustmentsForUndistributedProfitsOfAssociates"]
[null,null,null,null,"Other adjustments for which cash effects are investing or financing cash flow",-52.5,null,null,null,"OtherAdjustmentsForWhichCashEffectsAreInvestingOrFinancingCashFlow"]
[null,null,null,null,"Other adjustments to reconcile profit (loss)",-528.76,null,null,null,"OtherAdjustmentsToReconcileProfitLoss"]
[null,null,null,null,"Other adjustments for non-cash items",0,null,null,null,"OtherAdjustmentsForNoncashItems"]
[null,null,null,null,"Share of profit and loss from partnership firm or association of persons or limited liability partnerships",0,null,null,null,"ShareOfProfitAndLossFromPartnershipFirmOrAssociationOfPersonsOrLimitedLiabilityPartnerships"]
[null,null,null,null,"Total adjustments for reconcile profit (loss)",{"$f":"IF(COUNT(F20:F48),ROUND(SUM(F20:F39)-SUM(F40:F41)+SUM(F42:F43)-SUM(F44)+SUM(F45:F48),3),\"\")","v":-25748.43},null,null,null,"AdjustmentsForReconcileProfitLoss"]
[null,null,null,null,"Net cash flows from (used in) operations",{"$f":"IF(COUNT(F18,F49),ROUND(SUM(F18)+SUM(F49),3),\"\")","v":-23045.15},null,null,null,"CashFlowsFromUsedInOperations"]
[null,null,null,null,"Dividends received",0,null,null,null,"DividendsReceivedClassifiedAsOperatingActivities"]
[null,null,null,null,"Interest paid",13353.41,null,null,null,"InterestPaidClassifiedAsOperatingActivities"]
[null,null,null,null,"Interest received",0,null,null,null,"InterestReceivedClassifiedAsOperatingActivities"]
[null,null,null,null,"Income taxes paid (refund)",705.29,null,null,null,"IncomeTaxesPaidRefundClassifiedAsOperatingActivities"]
[null,null,null,null,"Other inflows (outflows) of cash",0,null,null,null,"OtherInflowsOutflowsOfCashClassifiedAsOperatingActivities"]
[null,null,null,null,"Net cash flows from (used in) operating activities",{"$f":"IF(COUNT(F50:F55),ROUND(SUM(F50)+SUM(F51)-SUM(F52)+SUM(F53)-SUM(F54)+SUM(F55),3),\"\")","v":-37103.85},null,null,null,"CashFlowsFromUsedInOperatingActivities"]
[null,null,null,null,"Cash flows from used in investing activities",null,null,null,null,"CashFlowsFromUsedInInvestingActivitiesAbstract"]
[null,null,null,null,"Cash flows from losing control of subsidiaries or other businesses",0,null,null,null,"CashFlowsFromLosingControlOfSubsidiariesOrOtherBusinessesClassifiedAsInvestingActivities"]
[null,null,null,null,"Cash flows used in obtaining control of subsidiaries or other businesses",0,null,null,null,"CashFlowsUsedInObtainingControlOfSubsidiariesOrOtherBusinessesClassifiedAsInvestingActivities"]
[null,null,null,null,"Other cash receipts from sales of equity or debt instruments of other entities",0,null,null,null,"OtherCashReceiptsFromSalesOfEquityOrDebtInstrumentsOfOtherEntitiesClassifiedAsInvestingActivities"]
[null,null,null,null,"Other cash payments to acquire equity or debt instruments of other entities",0,null,null,null,"OtherCashPaymentsToAcquireEquityOrDebtInstrumentsOfOtherEntitiesClassifiedAsInvestingActivities"]
[null,null,null,null,"Other cash receipts from sales of interests in joint ventures",0,null,null,null,"OtherCashReceiptsFromSalesOfInterestsInJointVenturesClassifiedAsInvestingActivities"]
[null,null,null,null,"Other cash payments to acquire interests in joint ventures",0,null,null,null,"OtherCashPaymentsToAcquireInterestsInJointVenturesClassifiedAsInvestingActivities"]
[null,null,null,null,"Cash receipts from share of profits of partnership firm or association of persons or limited liability partnerships",0,null,null,null,"CashReceiptsFromShareOfProfitsOfPartnershipFirmOrAssociationOfPersonsOrLimitedLiabilityPartnerships"]
[null,null,null,null,"Cash payment for investment in partnership firm or association of persons or limited liability partnerships",0,null,null,null,"CashPaymentForInvestmentInPartnershipFirmOrAssociationOfPersonsOrLimitedLiabilityPartnerships"]
[null,null,null,null,"Proceeds from sales of property, plant and equipment",18.66,null,null,null,"ProceedsFromSalesOfPropertyPlantAndEquipmentClassifiedAsInvestingActivities"]
[null,null,null,null,"Purchase of property, plant and equipment",700.38,null,null,null,"PurchaseOfPropertyPlantAndEquipmentClassifiedAsInvestingActivities"]
[null,null,null,null,"Proceeds from sales of investment property",0,null,null,null,"ProceedsFromSalesOfInvestmentPropertyClassifiedAsInvestingActivities"]
[null,null,null,null,"Purchase of investment property",0,null,null,null,"PurchaseOfInvestmentPropertyClassifiedAsInvestingActivities"]
[null,null,null,null,"Proceeds from sales of intangible assets",0,null,null,null,"ProceedsFromSalesOfIntangibleAssetsClassifiedAsInvestingActivities"]
[null,null,null,null,"Purchase of intangible assets",0,null,null,null,"PurchaseOfIntangibleAssetsClassifiedAsInvestingActivities"]
[null,null,null,null,"Proceeds from sales of intangible assets under development",0,null,null,null,"ProceedsFromSalesOfIntangibleAssetsUnderDevelopment"]
[null,null,null,null,"Purchase of intangible assets under development",0,null,null,null,"PurchaseOfIntangibleAssetsUnderDevelopment"]
[null,null,null,null,"Proceeds from sales of goodwill",0,null,null,null,"ProceedsFromSalesOfGoodwillClassifiedAsInvestingActivities"]
[null,null,null,null,"Purchase of goodwill",0,null,null,null,"PurchaseOfGoodwillClassifiedAsInvestingActivities"]
[null,null,null,null,"Proceeds from biological assets other than bearer plants",0,null,null,null,"ProceedsFromBiologicalAssetsOtherThanBearerPlantsClassifiedAsInvestingActivities"]
[null,null,null,null,"Purchase of biological assets other than bearer plants",0,null,null,null,"PurchaseOfBiologicalAssetsOtherThanBearerPlantsClassifiedAsInvestingActivities"]
[null,null,null,null,"Proceeds from government grants",0,null,null,null,"ProceedsFromGovernmentGrantsClassifiedAsInvestingActivities"]
[null,null,null,null,"Proceeds from sales of other long-term assets",0,null,null,null,"ProceedsFromSalesOfOtherLongTermAssetsClassifiedAsInvestingActivities"]
[null,null,null,null,"Purchase of other long-term assets",0,null,null,null,"PurchaseOfOtherLongTermAssetsClassifiedAsInvestingActivities"]
[null,null,null,null,"Cash advances and loans made to other parties",0,null,null,null,"CashAdvancesAndLoansMadeToOtherPartiesClassifiedAsInvestingActivities"]
[null,null,null,null,"Cash receipts from repayment of advances and loans made to other parties",0,null,null,null,"CashReceiptsFromRepaymentOfAdvancesAndLoansMadeToOtherPartiesClassifiedAsInvestingActivities"]
[null,null,null,null,"Cash payments for future contracts, forward contracts, option contracts and swap contracts",0,null,null,null,"CashPaymentsForFutureContractsForwardContractsOptionContractsAndSwapContractsClassifiedAsInvestingActivities"]
[null,null,null,null,"Cash receipts from future contracts, forward contracts, option contracts and swap contracts",0,null,null,null,"CashReceiptsFromFutureContractsForwardContractsOptionContractsAndSwapContractsClassifiedAsInvestingActivities"]
[null,null,null,null,"Dividends received",0,null,null,null,"DividendsReceivedClassifiedAsInvestingActivities"]
[null,null,null,null,"Interest received",0,null,null,null,"InterestReceivedClassifiedAsInvestingActivities"]
[null,null,null,null,"Income taxes paid (refund)",0,null,null,null,"IncomeTaxesPaidRefundClassifiedAsInvestingActivities"]
[null,null,null,null,"Other inflows (outflows) of cash",52.5,null,null,null,"OtherInflowsOutflowsOfCashClassifiedAsInvestingActivities"]
[null,null,null,null,"Net cash flows from (used in) investing activities",{"$f":"IF(COUNT(F58:F88),ROUND(SUM(F58)-SUM(F59)+SUM(F60)-SUM(F61)+SUM(F62)-SUM(F63)+SUM(F64)-SUM(F65)+SUM(F66)-SUM(F67)+SUM(F68)-SUM(F69)+SUM(F70)-SUM(F71)+SUM(F72)-SUM(F73)+SUM(F74)-SUM(F75)+SUM(F76)-SUM(F77)+SUM(F78)+SUM(F79)-SUM(F80)-SUM(F81)+SUM(F82)-SUM(F83)+SUM(F84:F86)-SUM(F87)+SUM(F88),3),\"\")","v":-629.22},null,null,null,"CashFlowsFromUsedInInvestingActivities"]
[null,null,null,null,"Cash flows from used in financing activities",null,null,null,null,"CashFlowsFromUsedInFinancingActivitiesAbstract"]
[null,null,null,null,"Proceeds from changes in ownership interests in subsidiaries",0,null,null,null,"ProceedsFromChangesInOwnershipInterestsInSubsidiaries"]
[null,null,null,null,"Payments from changes in ownership interests in subsidiaries",0,null,null,null,"PaymentsFromChangesInOwnershipInterestsInSubsidiaries"]
[null,null,null,null,"Proceeds from issuing shares",0,null,null,null,"ProceedsFromIssuingSharesClassifiedAsFinancingActivities"]
[null,null,null,null,"Proceeds from issuing other equity instruments",0,null,null,null,"ProceedsFromIssuingOtherEquityInstruments"]
[null,null,null,null,"Payments to acquire or redeem entity's shares",0,null,null,null,"PaymentsToAcquireOrRedeemEntitysShares"]
[null,null,null,null,"Payments of other equity instruments",0,null,null,null,"PaymentsOfOtherEquityInstruments"]
[null,null,null,null,"Proceeds from exercise of stock options",0,null,null,null,"ProceedsFromExerciseOfStockOptions"]
[null,null,null,null,"Proceeds from issuing debentures notes bonds etc",-11713.94,null,null,null,"ProceedsFromIssuingDebenturesNotesBondsEtc"]
[null,null,null,null,"Proceeds from borrowings",36207.26,null,null,null,"ProceedsFromBorrowingsClassifiedAsFinancingActivities"]
[null,null,null,null,"Repayments of borrowings",0,null,null,null,"RepaymentsOfBorrowingsClassifiedAsFinancingActivities"]
[null,null,null,null,"Payments of finance lease liabilities",0,null,null,null,"PaymentsOfFinanceLeaseLiabilitiesClassifiedAsFinancingActivities"]
[null,null,null,null,"Payments of lease liabilities",0,null,null,null,"PaymentsOfLeaseLiabilitiesClassifiedAsFinancingActivities"]
[null,null,null,null,"Dividends paid",0,null,null,null,"DividendsPaidClassifiedAsFinancingActivities"]
[null,null,null,null,"Interest paid",0,null,null,null,"InterestPaidClassifiedAsFinancingActivities"]
[null,null,null,null,"Income taxes paid (refund)",0,null,null,null,"IncomeTaxesPaidRefundClassifiedAsFinancingActivities"]
[null,null,null,null,"Other inflows (outflows) of cash",0,null,null,null,"OtherInflowsOutflowsOfCashClassifiedAsFinancingActivities"]
[null,null,null,null,"Net cash flows from (used in) financing activities",{"$f":"IF(COUNT(F91:F106),ROUND(SUM(F91)-SUM(F92)+SUM(F93)+SUM(F94)-SUM(F95)-SUM(F96)+SUM(F97)+SUM(F98)+SUM(F99)-SUM(F100)-SUM(F101)-SUM(F102)-SUM(F103)-SUM(F104)-SUM(F105)+SUM(F106),3),\"\")","v":24493.32},null,null,null,"CashFlowsFromUsedInFinancingActivities"]
[null,null,null,null,"Net increase (decrease) in cash and cash equivalents before effect of exchange rate changes",{"$f":"IF(COUNT(F56:F107),ROUND(SUM(F56)+SUM(F89)+SUM(F107),3),\"\")","v":-13239.75},null,null,null,"IncreaseDecreaseInCashAndCashEquivalentsBeforeEffectOfExchangeRateChanges"]
[null,null,null,null,"Effect of exchange rate changes on cash and cash equivalents",null,null,null,null,"EffectOfExchangeRateChangesOnCashAndCashEquivalentsAbstract"]
[null,null,null,null,"Effect of exchange rate changes on cash and cash equivalents",0,null,null,null,"EffectOfExchangeRateChangesOnCashAndCashEquivalents"]
[null,null,null,null,"Net increase (decrease) in cash and cash equivalents",{"$f":"IF(COUNT(F108,F110),ROUND(SUM(F108)+SUM(F110),3),\"\")","v":-13239.75},null,null,null,"IncreaseDecreaseInCashAndCashEquivalents"]
[null,null,null,null,"Cash and cash equivalents cash flow statement at beginning of period",35532.730000000003,null,null,null,"CashAndCashEquivalentsCashFlowStatement"]
[null,null,null,null,"Cash and cash equivalents cash flow statement at end of period",{"$f":"IF(COUNT(F111,F112),ROUND(SUM(F111)+SUM(F112),3),\"\")","v":22292.98},null,null,null,"CashAndCashEquivalentsCashFlowStatement"]

{"sheet":"Asset Liabilities","index":5,"n_rows":69,"n_cols":14,"rows_kept":69,"cut":false,"hidden":false,"merged":[[13,4,13,6],[7,4,7,6],[8,4,8,5],[9,4,9,5],[10,4,10,5],[11,4,11,5],[12,4,12,5]]}
[]
[]
[]
[]
[]
[]
[]
[null,null,null,null,"Statement of Asset and Liabilities"]
[null,null,null,null,"Particulars",null,"Half year ended        (dd-mm-yyyy)"]
[null,null,null,null,"Date of start of reporting period",null,"01-04-2022"]
[null,null,null,null,"Date of end of reporting period",null,"30-09-2022"]
[null,null,null,null,"Whether results are audited or unaudited",null,{"$f":"+IF(COUNTA('General Info'!E21),'General Info'!E21,\"\")","v":"Unaudited"},null,null,null,null,null,null,"Audited"]
[null,null,null,null,"Nature of report standalone or consolidated",null,{"$f":"+IF(COUNTA('General Info'!E20),'General Info'!E20,\"\")","v":"Standalone"},null,null,null,null,null,null,"Unaudited"]
[]
[null,null,null,null,null,"  Assets"]
[null,null,null,null,1,"Finanical Asset"]
[null,null,null,null,null,"Cash and cash equivalents",22292.98,null,null,null,"CashAndCashEquivalents"]
[null,null,null,null,null,"Bank Balance other than (a) above",24579.34,null,null,null,"BankBalanceOtherThanCashAndCashEquivalents"]
[null,null,null,null,null,"Derivative financial instruments",0,null,null,null,"DerivativeFinancialInstrumentsFinancialAssets"]
[null,null,null,null,null,"Receivables"]
[null,null,null,null,null,"(I) Trade Receivables",0,null,null,null,"TradeReceivables"]
[null,null,null,null,null,"(II) Other Receivables",0,null,null,null,"OtherReceivables"]
[null,null,null,null,null,"Loans",276853.62,null,null,null,"Loans"]
[null,null,null,null,null,"Investments",906.19,null,null,null,"Investments"]
[null,null,null,null,null,"Other Financial assets",2328.9899999999998,null,null,null,"OtherFinancialAssets"]
[null,null,null,null,2,"Non Financial Asset"]
[null,null,null,null,null,"Inventories",0,null,null,null,"Inventories"]
[null,null,null,null,null,"Current tax assets (Net)",2573.14,null,null,null,"CurrentTaxAssetsNet"]
[null,null,null,null,null,"Deferred tax Assets (Net)",229.56,null,null,null,"DeferredTaxAssetsNet"]
[null,null,null,null,null,"Investment Property",0,null,null,null,"InvestmentProperty"]
[null,null,null,null,null,"Biological assets other than bearer plants",0,null,null,null,"BiologicalAssetsOtherThanBearerPlants"]
[null,null,null,null,null,"Property, Plant and Equipment",18825.75,null,null,null,"PropertyPlantAndEquipment"]
[null,null,null,null,null,"Capital work-in-progress",0,null,null,null,"CapitalWorkInProgress"]
[null,null,null,null,null,"Intangible assets under development",0,null,null,null,"IntangibleAssetsUnderDevelopment"]
[null,null,null,null,null,"Goodwill",0,null,null,null,"Goodwill"]
[null,null,null,null,null,"Other Intangible assets",14.29,null,null,null,"OtherIntangibleAssets"]
[null,null,null,null,null,"Other non-financial assets (to be specified)",1044.3699999999999,null,null,null,"OtherNonFinancialAssets"]
[null,null,null,null,null,"Total assets",{"$f":"IF(COUNT(G27:G37,G17:G25),ROUND(SUM(G27:G37,G17:G25),3),\"\")","v":349648.23},null,null,null,"Assets"]
[null,null,null,null,null,"Equity and liabilities"]
[null,null,null,null,1,"Equity"]
[null,null,null,null,null,"Equity attributable to owners of parent"]
[null,null,null,null,null,"Equity share capital",24952.54,null,null,null,"EquityShareCapital"]
[null,null,null,null,null,"Other equity",32984,null,null,null,"OtherEquity"]
[null,null,null,null,null,"Total equity attributable to owners of parent",{"$f":"IF(COUNT(G42:G43),ROUND(SUM(G42:G43),3),\"\")","v":57936.54},null,null,null,"EquityAttributableToOwnersOfParent"]
[null,null,null,null,null,"Non controlling interest",null,null,null,null,"NonControllingInterest"]
[null,null,null,null,null,"Total equity",{"$f":"IF(COUNT(G44:G45),ROUND(SUM(G44:G45),3),\"\")","v":57936.54},null,null,null,"Equity"]
[null,null,null,null,2,"Liabilities"]
[null,null,null,null,2.1,"Financial Liabilities"]
[null,null,null,null,"(a)","Derivative financial instruments",0,null,null,null,"DerivativeFinancialInstrumentsFinancialLiabilities"]
[null,null,null,null,"(b)","Payables",0,null,null,null,"Payables"]
[null,null,null,null,null,"(I)Trade Payables"]
[null,null,null,null,null,"(i) total outstanding dues of micro enterprises and small enterprises",0,null,null,null,"TotalOutstandingDuesOfMicroEnterpriseAndSmallEnterprise"]
[null,null,null,null,null,"(ii) total outstanding dues of creditors other than micro enterprises and small enterprises",0,null,null,null,"TotalOutstandingDuesOfCreditorsOtherThanMicroEnterpriseAndSmallEnterprise"]
[null,null,null,null,null,"II) Other Payables"]
[null,null,null,null,null,"(i) total outstanding dues of micro enterprises and small enterprises",0,null,null,null,"TotalOutstandingDuesOfMicroEnterpriseAndSmallEnterpriseOtherPayables"]
[null,null,null,null,null,"(ii) total outstanding dues of creditors other than micro enterprises and small enterprises",0,null,null,null,"TotalOutstandingDuesOfCreditorsOtherThanMicroEnterpriseAndSmallEnterpriseOtherPayables"]
[null,null,null,null,"(C )","Debt Securities",156326.28,null,null,null,"DebtSecurities"]
[null,null,null,null,"(d)","Borrowings (Other than Debt Securities)",113528.87,null,null,null,"Borrowings"]
[null,null,null,null,"(e)","Deposits",0,null,null,null,"Deposits"]
[null,null,null,null,"(f)","Subordinated Liabilities",19736.02,null,null,null,"SubordinatedLiabilities"]
[null,null,null,null,"(g)","Other financial liabilities",1489.89,null,null,null,"OtherFinancialLiabilities"]
[null,null,null,null,2.2000000000000002,"Non-Financial Liabilities"]
[null,null,null,null,"(a)","Current tax liabilities (Net)",0,null,null,null,"CurrentTaxLiabilities"]
[null,null,null,null,"(b)","Provisions",432.79,null,null,null,"Provisions"]
[null,null,null,null,"(C )","Deferred tax liabilities (Net)",0,null,null,null,"DeferredTaxLiabilitiesNet"]
[null,null,null,null,"(d)","Other non-financial liabilities",197.84,null,null,null,"OtherNonFinancialLiabilities"]
[null,null,null,null,null,"Total liabilities",{"$f":"+IF(COUNT(G63:G66,G49:G61),ROUND(SUM(G49:G61,G63:G66),3),\"\")","v":291711.69},null,null,null,"Liabilities"]
[null,null,null,null,null,"Total equity and liabilites",{"$f":"+IF(COUNT(G46,G67),SUM(G46,G67),\"\")","v":349648.23},null,null,null,"EquityAndLiabilities"]
[null,null,null,null,null,"Disclosure of notes on assets and liabilities",null,null,null,null,"DisclosureOfNotesOnAssetsAndLiabilitiesExplanatoryTextBlock"]

{"sheet":"Segment","index":6,"n_rows":99,"n_cols":19,"rows_kept":99,"cut":false,"hidden":false,"merged":[[12,3,12,4],[7,3,7,6],[8,3,8,4],[9,3,9,4],[10,3,10,4],[11,3,11,4],[77,5,77,6],[78,5,78,6],[13,5,13,6],[14,5,14,6],[34,5,34,6],[35,5,35,6],[56,5,56,6],[57,5,57,6]]}
[]
[]
[]
[]
[]
[]
[]
[null,null,null,"Format for Reporting Segmenet wise Revenue, Results and Capital Employed along with the company results"]
[null,null,null,"Particulars",null,"3 months/ 6 month ended (dd-mm-yyyy)","Year to date figures for current period ended                        (dd-mm-yyyy)"]
[null,null,null,"Date of start of reporting period",null,"01-07-2022","01-04-2022"]
[null,null,null,"Date of end of reporting period",null,"30-09-2022","30-09-2022"]
[null,null,null,"Whether accounts are audited or unaudited",null,{"$f":"+IF(COUNTA('General Info'!E21),'General Info'!E21,\"\")","v":"Unaudited"},{"$f":"+IF(COUNTA('General Info'!E21),'General Info'!E21,\"\")","v":"Unaudited"},null,null,null,null,null,null,null,"Audited"]
[null,null,null,"Nature of report standalone or consolidated",null,{"$f":"+IF(COUNTA('General Info'!E20),'General Info'!E20,\"\")","v":"Standalone"},{"$f":"+IF(COUNTA('General Info'!E20),'General Info'!E20,\"\")","v":"Standalone"},null,null,null,null,null,null,null,"Unaudited"]
[null,null,null,1,"Segment Revenue (Income) "]
[null,null,null,null,"(net sale/income from each segment should be disclosed)"]
[null,null,null,1,null,null,{"$f":"+IF(COUNT(F16),+F16,\"\")","v":""},null,null,null,null,null,null,null,null,null,null,null,{"$f":"+IF(COUNT(F16),+F16,\"\")","v":""}]
[null,null,null,2,null,null,"",null,null,null,null,null,null,null,null,null,null,null,{"$f":"+IF(COUNT(F17),+F17,\"\")","v":""}]
[null,null,null,3,null,null,"",null,null,null,null,null,null,null,null,null,null,null,""]
[null,null,null,4,null,null,"",null,null,null,null,null,null,null,null,null,null,null,""]
[null,null,null,5,null,null,"",null,null,null,null,null,null,null,null,null,null,null,""]
[null,null,null,6,null,null,"",null,null,null,null,null,null,null,null,null,null,null,""]
[null,null,null,7,null,null,"",null,null,null,null,null,null,null,null,null,null,null,""]
[null,null,null,8,null,null,"",null,null,null,null,null,null,null,null,null,null,null,""]
[null,null,null,9,null,null,"",null,null,null,null,null,null,null,null,null,null,null,""]
[null,null,null,10,null,null,"",null,null,null,null,null,null,null,null,null,null,null,""]
[null,null,null,11,null,null,"",null,null,null,null,null,null,null,null,null,null,null,""]
[null,null,null,12,null,null,"",null,null,null,null,null,null,null,null,null,null,null,""]
[null,null,null,13,null,null,"",null,null,null,null,null,null,null,null,null,null,null,""]
[null,null,null,14,null,null,"",null,null,null,null,null,null,null,null,null,null,null,""]
[null,null,null,15,null,null,"",null,null,null,null,null,null,null,null,null,null,null,""]
[null,null,null,null,"Total Segment Revenue",{"$f":"+IF(COUNT(F16:F30),SUM(F16:F30),\"\")","v":""},{"$f":"+IF(COUNT(G16:G30),SUM(G16:G30),\"\")","v":""},null,null,null,"SegmentRevenue",null,null,null,null,null,null,null,""]
[null,null,null,null,"Less: Inter segment revenue",null,{"$f":"+IF(COUNT(F32),+F32,\"\")","v":""},null,null,null,"InterSegmentRevenue",null,null,null,null,null,null,null,""]
[null,null,null,null,"Revenue  from  operations ",{"$f":"+IF(COUNT(F31:F32),SUM(F31)-SUM(F32),\"\")","v":""},{"$f":"+IF(COUNT(G31:G32),SUM(G31)-SUM(G32),\"\")","v":""},null,null,null,"SegmentRevenueFromOperations",null,null,null,null,null,null,null,""]
[null,null,null,null,null,null,null,null,null,null,null,null,null,null,null,null,null,null,""]
[null,null,null,2,"Segment Result",null,null,null,null,null,null,null,null,null,null,null,null,null,""]
[null,null,null,null,"Profit (+) / Loss (-) before tax and interest from each segment",null,null,null,null,null,null,null,null,null,null,null,null,null,""]
[null,null,null,1,{"$f":"+IF(COUNTA(E16),+E16,\"\")","v":""},null,{"$f":"+IF(COUNT(F37),+F37,\"\")","v":""},null,null,null,null,null,null,null,null,null,null,null,""]
[null,null,null,2,{"$f":"+IF(COUNTA(E17),+E17,\"\")","v":""},null,"",null,null,null,null,null,null,null,null,null,null,null,""]
[null,null,null,3,"",null,"",null,null,null,null,null,null,null,null,null,null,null,""]
[null,null,null,4,"",null,"",null,null,null,null,null,null,null,null,null,null,null,""]
[null,null,null,5,"",null,"",null,null,null,null,null,null,null,null,null,null,null,""]
[null,null,null,6,"",null,"",null,null,null,null,null,null,null,null,null,null,null,""]
[null,null,null,7,"",null,"",null,null,null,null,null,null,null,null,null,null,null,""]
[null,null,null,8,"",null,"",null,null,null,null,null,null,null,null,null,null,null,""]
[null,null,null,9,"",null,"",null,null,null,null,null,null,null,null,null,null,null,""]
[null,null,null,10,"",null,"",null,null,null,null,null,null,null,null,null,null,null,""]
[null,null,null,11,"",null,"",null,null,null,null,null,null,null,null,null,null,null,""]
[null,null,null,12,"",null,"",null,null,null,null,null,null,null,null,null,null,null,""]
[null,null,null,13,"",null,"",null,null,null,null,null,null,null,null,null,null,null,""]
[null,null,null,14,"",null,"",null,null,null,null,null,null,null,null,null,null,null,""]
[null,null,null,15,"",null,"",null,null,null,null,null,null,null,null,null,null,null,""]
[null,null,null,null,"Total  Profit  before  tax",{"$f":"+IF(COUNT(F37:F51),SUM(F37:F51),\"\")","v":""},{"$f":"+IF(COUNT(G37:G51),SUM(G37:G51),\"\")","v":""},null,null,null,"SegmentProfitLossBeforeTaxAndFinanceCosts",null,null,null,null,null,null,null,""]
[null,null,null,null,"i. Finance cost",null,{"$f":"+IF(COUNT(F53),+F53,\"\")","v":""},null,null,null,"SegmentFinanceCosts",null,null,null,null,null,null,null,""]
[null,null,null,null,"ii. Other Unallocable Expenditure net off Unallocable income",null,{"$f":"+IF(COUNT(F54),+F54,\"\")","v":""},null,null,null,"OtherUnallocableExpenditureNetOffUnAllocableIncome",null,null,null,null,null,null,null,""]
[null,null,null,null,"Profit before tax",{"$f":"+IF(COUNT(F52:F54),SUM(F52)-SUM(F53)-SUM(F54),\"\")","v":""},{"$f":"+IF(COUNT(G52:G54),SUM(G52)-SUM(G53)-SUM(G54),\"\")","v":""},null,null,null,"SegmentProfitBeforeTax",null,null,null,null,null,null,null,""]
[null,null,null,null,null,null,null,null,null,null,null,null,null,null,null,null,null,null,""]
[null,null,null,3,"(Segment Asset - Segment Liabilities)",null,null,null,null,null,null,null,null,null,null,null,null,null,""]
[null,null,null,null,"Segment Asset ",null,null,null,null,null,null,null,null,null,null,null,null,null,""]
[null,null,null,1,{"$f":"+IF(COUNTA(E16),+E16,\"\")","v":""},null,{"$f":"+IF(COUNT(F59),+F59,\"\")","v":""},null,null,null,null,null,null,null,null,null,null,null,""]
[null,null,null,2,{"$f":"+IF(COUNTA(E17),+E17,\"\")","v":""},null,"",null,null,null,null,null,null,null,null,null,null,null,""]
[null,null,null,3,{"$f":"+IF(COUNTA(E18),+E18,\"\")","v":""},null,"",null,null,null,null,null,null,null,null,null,null,null,""]
[null,null,null,4,"",null,"",null,null,null,null,null,null,null,null,null,null,null,""]
[null,null,null,5,"",null,"",null,null,null,null,null,null,null,null,null,null,null,""]
[null,null,null,6,"",null,"",null,null,null,null,null,null,null,null,null,null,null,""]
[null,null,null,7,"",null,"",null,null,null,null,null,null,null,null,null,null,null,""]
[null,null,null,8,"",null,"",null,null,null,null,null,null,null,null,null,null,null,""]
[null,null,null,9,"",null,"",null,null,null,null,null,null,null,null,null,null,null,""]
[null,null,null,10,"",null,"",null,null,null,null,null,null,null,null,null,null,null,""]
[null,null,null,11,"",null,"",null,null,null,null,null,null,null,null,null,null,null,""]
[null,null,null,12,"",null,"",null,null,null,null,null,null,null,null,null,null,null,""]
[null,null,null,13,"",null,"",null,null,null,null,null,null,null,null,null,null,null,""]
[null,null,null,14,"",null,"",null,null,null,null,null,null,null,null,null,null,null,""]
[null,null,null,15,"",null,"",null,null,null,null,null,null,null,null,null,null,null,""]
[null,null,null,null,"Total Segment Asset",{"$f":"+IF(COUNT(F59:F73),SUM(F59:F73),\"\")","v":""},{"$f":"+IF(COUNT(G59:G73),SUM(G59:G73),\"\")","v":""},null,null,null,"SegmentAssets",null,null,null,null,null,null,null,""]
[null,null,null,null,"Un-allocable Assets",null,{"$f":"+IF(COUNT(F75),+F75,\"\")","v":""},null,null,null,"UnAllocableAssets",null,null,null,null,null,null,null,""]
[null,null,null,null,"Net Segment Asset",{"$f":"+IF(COUNT(F74:F75),SUM(F74)+SUM(F75),\"\")","v":""},{"$f":"+IF(COUNT(G74:G75),SUM(G74)+SUM(G75),\"\")","v":""},null,null,null,"NetSegmentAssets",null,null,null,null,null,null,null,""]
[null,null,null,null,null,null,null,null,null,null,null,null,null,null,null,null,null,null,""]
[null,null,null,4,"Segment Liabilities",null,null,null,null,null,null,null,null,null,null,null,null,null,""]
[null,null,null,null,"Segment Liabilities",null,null,null,null,null,null,null,null,null,null,null,null,null,""]
[null,null,null,1,{"$f":"+IF(COUNTA(E16),+E16,\"\")","v":""},null,{"$f":"+IF(COUNT(F80),+F80,\"\")","v":""},null,null,null,null,null,null,null,null,null,null,null,""]
[null,null,null,2,{"$f":"+IF(COUNTA(E17),+E17,\"\")","v":""},null,"",null,null,null,null,null,null,null,null,null,null,null,{"$f":"+IF(COUNT(F81),+F81,\"\")","v":""}]
[null,null,null,3,{"$f":"+IF(COUNTA(E18),+E18,\"\")","v":""},null,"",null,null,null,null,null,null,null,null,null,null,null,""]
[null,null,null,4,"",null,"",null,null,null,null,null,null,null,null,null,null,null,""]
[null,null,null,5,"",null,"",null,null,null,null,null,null,null,null,null,null,null,""]
[null,null,null,6,"",null,"",null,null,null,null,null,null,null,null,null,null,null,""]
[null,null,null,7,"",null,"",null,null,null,null,null,null,null,null,null,null,null,""]
[null,null,null,8,"",null,"",null,null,null,null,null,null,null,null,null,null,null,""]
[null,null,null,9,"",null,"",null,null,null,null,null,null,null,null,null,null,null,""]
[null,null,null,10,"",null,"",null,null,null,null,null,null,null,null,null,null,null,""]
[null,null,null,11,"",null,"",null,null,null,null,null,null,null,null,null,null,null,""]
[null,null,null,12,"",null,"",null,null,null,null,null,null,null,null,null,null,null,""]
[null,null,null,13,"",null,"",null,null,null,null,null,null,null,null,null,null,null,""]
[null,null,null,14,"",null,"",null,null,null,null,null,null,null,null,null,null,null,""]
[null,null,null,15,"",null,"",null,null,null,null,null,null,null,null,null,null,null,""]
[null,null,null,null,"Total Segment Liabilities",{"$f":"+IF(COUNT(F80:F94),SUM(F80:F94),\"\")","v":""},{"$f":"+IF(COUNT(G80:G94),SUM(G80:G94),\"\")","v":""},null,null,null,"SegmentLiabilities",null,null,null,null,null,null,null,""]
[null,null,null,null,"Un-allocable Liabilities",null,{"$f":"+IF(COUNT(F96),+F96,\"\")","v":""},null,null,null,"UnAllocableLiabilities",null,null,null,null,null,null,null,""]
[null,null,null,null,"Net Segment Liabilities",{"$f":"+IF(COUNT(F95:F96),SUM(F95)+SUM(F96),\"\")","v":""},{"$f":"+IF(COUNT(G95:G96),SUM(G95)+SUM(G96),\"\")","v":""},null,null,null,"NetSegmentLiabilities",null,null,null,null,null,null,null,""]
[null,null,null,null,null,null,null,null,null,null,null,null,null,null,null,null,null,null,""]
[null,null,null,null,"Disclosure of notes on segments",null,null,null,null,null,"DisclosureOfNotesOnSegmentsExplanatoryTextBlock"]

{"sheet":"OCI","index":7,"n_rows":21,"n_cols":19,"rows_kept":21,"cut":false,"hidden":false,"merged":[[5,1,5,4],[6,1,6,2],[11,3,11,4],[12,3,12,4],[16,3,16,4]]}
[null,null,null,null,null,0,0]
[null,null,null,null,{"$f":"+IF(COUNT(D2),D2,\"\")","v":""},null,null,null,null,null,null,null,null,null,null,null,null,null,{"$f":"+IF(COUNT(D2),D2,\"\")","v":""}]
[]
[]
[]
[null,"Other Comprehensive Income"]
[null,"Particulars",null,"3 months/ 6 month ended         (dd-mm-yyyy)","Year to date figures for current period ended                              (dd-mm-yyyy)"]
[null,"A","Date of start of reporting period","01-07-2022","01-04-2022"]
[null,"B","Date of end of reporting period","30-09-2022","30-09-2022"]
[null,"C","Whether results are audited or unaudited",{"$f":"+IF(COUNTA('Financial Results'!F12),'Financial Results'!F12,\"\")","v":"Unaudited"},{"$f":"+IF(COUNTA('Financial Results'!G12),'Financial Results'!G12,\"\")","v":"Unaudited"}]
[null,"D","Nature of report standalone or consolidated",{"$f":"+IF(COUNTA('Financial Results'!F13),'Financial Results'!F13,\"\")","v":"Standalone"},{"$f":"+IF(COUNTA('Financial Results'!G13),'Financial Results'!G13,\"\")","v":"Standalone"}]
[null,null,"Other comprehensive income [Abstract]"]
[null,1,"Amount of items that will not be reclassified to profit and loss"]
[]
[null,null,"Total Amount of items that will not be reclassified to profit and loss",{"$f":"IF(COUNT(D13:D14),SUM(D13:D14),\"\")","v":""},{"$f":"IF(COUNT(E13:E14),SUM(E13:E14),\"\")","v":""},null,null,null,null,null,"AmountOfItemThatWillNotBeReclassifiedToProfitAndLoss"]
[null,2,"Income tax relating to items that will not be reclassified to profit or loss ",0,{"$f":"+IF(COUNT(D16),D16,\"\")","v":0},null,null,null,null,null,"IncomeTaxRelatingToItmesThatWillNotBeReclassifiedToProfitOrLoss"]
[null,3,"Amount of items that will be reclassified to profit and loss"]
[]
[null,null,"Total Amount of items that will be reclassified to profit and loss",{"$f":"IF(COUNT(D17:D18),SUM(D17:D18),\"\")","v":""},{"$f":"IF(COUNT(E17:E18),SUM(E17:E18),\"\")","v":""},null,null,null,null,null,"AmountOfItemThatWillBeReclassifiedToProfitAndLoss"]
[null,4,"Income tax relating to items that will be reclassified to profit or loss ",0,{"$f":"+IF(COUNT(D20),D20,\"\")","v":0},null,null,null,null,null,"IncomeTaxRelatingToItmesThatWillBeReclassifiedToProfitOrLoss"]
[null,5,"Total Other comprehensive income",{"$f":"IF(COUNT(D15,D16,D19,D20),SUM(D15)-SUM(D16)+SUM(D19)-SUM(D20),\"\")","v":0},{"$f":"IF(COUNT(E15,E16,E19,E20),SUM(E15)-SUM(E16)+SUM(E19)-SUM(E20),\"\")","v":0},null,null,null,null,null,"OtherComprehensiveIncome"]

{"sheet":"TextBlock","index":8,"n_rows":0,"n_cols":0,"rows_kept":0,"cut":false,"hidden":true,"merged":[]}

{"sheet":"Taxonomy","index":9,"n_rows":529,"n_cols":5,"rows_kept":529,"cut":false,"hidden":true,"merged":[]}
["element","label","type","periodType","validation"]
["General Information"]
["BalanceSheetAbstract","Balance sheet [Abstract]","xbrli:stringItemType","duration"]
["PropertyPlantAndEquipment","Property, plant and equipment","xbrli:monetaryItemType","instant"]
["CapitalWorkInProgress","Capital work-in-progress","xbrli:monetaryItemType","instant"]
["InvestmentProperty","Investment property","xbrli:monetaryItemType","instant"]
["Goodwill","Goodwill","xbrli:monetaryItemType","instant"]
["OtherIntangibleAssets","Other intangible assets","xbrli:monetaryItemType","instant"]
["IntangibleAssetsUnderDevelopment","Intangible assets under development","xbrli:monetaryItemType","instant"]
["BiologicalAssetsOtherThanBearerPlants","Biological assets other than bearer plants","xbrli:monetaryItemType","instant"]
["NoncurrentFinancialAssetsAbstract","Non-current financial assets [Abstract]","xbrli:stringItemType","duration"]
["TradeReceivablesNoncurrent","Trade receivables, non-current","xbrli:monetaryItemType","instant"]
["LoansNoncurrent","Loans, non-current","xbrli:monetaryItemType","instant"]
["OtherNoncurrentFinancialAssets","Other non-current financial assets","xbrli:monetaryItemType","instant"]
["NoncurrentFinancialAssets","Non-current financial assets","xbrli:monetaryItemType","instant"]
["CurrentFinancialAssetsAbstract","Current financial assets [Abstract]","xbrli:stringItemType","duration"]
["TradeReceivablesCurrent","Trade receivables, current","xbrli:monetaryItemType","instant"]
["CashAndCashEquivalents","Cash and cash equivalents","xbrli:monetaryItemType","instant"]
["BankBalanceOtherThanCashAndCashEquivalents","Bank balance other than cash and cash equivalents","xbrli:monetaryItemType","instant"]
["LoansCurrent","Loans, current","xbrli:monetaryItemType","instant"]
["OtherCurrentFinancialAssets","Other current financial assets","xbrli:monetaryItemType","instant"]
["CurrentFinancialAssets","Current financial assets","xbrli:monetaryItemType","instant"]
["CurrentTaxAssetsNet","Current tax assets (Net)","xbrli:monetaryItemType","instant"]
["NoncurrentAssetsClassifiedAsHeldForSale","Non-current assets classified as held for sale","xbrli:monetaryItemType","instant"]
["EquityAbstract","Equity [Abstract]","xbrli:stringItemType","duration"]
["EquityShareCapital","Equity share capital","xbrli:monetaryItemType","instant"]
["OtherEquity","Other equity","xbrli:monetaryItemType","instant"]
["Equity","Equity","xbrli:monetaryItemType","instant"]
["LiabilitiesAbstract","Liabilities [Abstract]","xbrli:stringItemType","duration"]
["NoncurrentFinancialLiabilitiesAbstract","Non-current financial liabilities [Abstract]","xbrli:stringItemType","duration"]
["BorrowingsNoncurrent","Borrowings, non-current","xbrli:monetaryItemType","instant"]
["TradePayablesNoncurrent","Trade payables, non-current","xbrli:monetaryItemType","instant"]
["OtherNoncurrentFinancialLiabilities","Other non-current financial liabilities","xbrli:monetaryItemType","instant"]
["NoncurrentFinancialLiabilities","Non-current financial liabilities","xbrli:monetaryItemType","instant"]
["ProvisionsNoncurrent","Provisions, non-current","xbrli:monetaryItemType","instant"]
["OtherNoncurrentLiabilities","Other non-current liabilities","xbrli:monetaryItemType","instant"]
["CurrentFinancialLiabilitiesAbstract","Current financial liabilities [Abstract]","xbrli:stringItemType","duration"]
["BorrowingsCurrent","Borrowings, current","xbrli:monetaryItemType","instant"]
["TradePayablesCurrent","Trade payables, current","xbrli:monetaryItemType","instant"]
["OtherCurrentFinancialLiabilities","Other current financial liabilities","xbrli:monetaryItemType","instant"]
["CurrentFinancialLiabilities","Current financial liabilities","xbrli:monetaryItemType","instant"]
["ProvisionsCurrent","Provisions, current","xbrli:monetaryItemType","instant"]
["CurrentTaxLiabilities","Current tax liabilities","xbrli:monetaryItemType","instant"]
["LiabilitiesDirectlyAssociatedWithAssetsInDisposalGroupClassifiedAsHeldForSale","Liabilities directly associated with assets in disposal group classified as held for sale","xbrli:monetaryItemType","instant"]
["Liabilities","Liabilities","xbrli:monetaryItemType","instant"]
["StatementOfProfitAndLossAbstract","Statement of profit and loss [Abstract]","xbrli:stringItemType","duration"]
["IncomeAbstract","Income [Abstract]","xbrli:stringItemType","duration"]
["Income","Income","xbrli:monetaryItemType","duration"]
["DepreciationDepletionAndAmortisationExpense","Depreciation, depletion and amortisation expense","xbrli:monetaryItemType","duration"]
["ProfitBeforeExceptionalItemsAndTax","Profit before exceptional items and tax","xbrli:monetaryItemType","duration"]
["DeferredTax","Deferred tax","xbrli:monetaryItemType","duration"]
["ProfitLossForPeriodFromContinuingOperations","Profit (loss) for period from continuing operations","xbrli:monetaryItemType","duration"]
["ProfitLossFromDiscontinuedOperationsBeforeTax","Profit (loss) from discontinued operations before tax","xbrli:monetaryItemType","duration"]
["TaxExpenseOfDiscontinuedOperations","Tax expense of discontinued operations","xbrli:monetaryItemType","duration"]
["ProfitLossFromDiscontinuedOperationsAfterTax","Profit (loss) from discontinued operations after tax","xbrli:monetaryItemType","duration"]
["ShareOfProfitLossOfAssociatesAndJointVenturesAccountedForUsingEquityMethod","Share of profit (loss) of associates and joint ventures accounted for using equity method","xbrli:monetaryItemType","duration"]
["ProfitLossForPeriod","Profit (loss) for period","xbrli:monetaryItemType","duration"]
["ProfitOrLossAttributableToOwnersOfParent","Profit or loss, attributable to owners of parent","xbrli:monetaryItemType","duration"]
["ProfitOrLossAttributableToNonControllingInterests","Profit or loss, attributable to non-controlling interests","xbrli:monetaryItemType","duration"]
["OtherComprehensiveIncomeNetOfTaxes","Other comprehensive income net of taxes","xbrli:monetaryItemType","duration"]
["ComprehensiveIncomeForThePeriod","Comprehensive income for the period","xbrli:monetaryItemType","duration"]
["ComprehensiveIncomeForThePeriodAttributableToOwnersOfParent","Total comprehensive income for the period attributable to owners of parent","xbrli:monetaryItemType","duration"]
["ComprehensiveIncomeForThePeriodAttributableToOwnersOfParentNonControllingInterests","Total comprehensive income for the period attributable to owners of parent non-controlling interests","xbrli:monetaryItemType","duration"]
["EarningsPerShareForContinuingOperationsAbstract","Earnings per share for continuing operations [Abstract]","xbrli:stringItemType","duration"]
["BasicEarningsLossPerShareFromContinuingOperations","Basic earnings (loss) per share from continuing operations","num:perShareItemType","duration"]
["DilutedEarningsLossPerShareFromContinuingOperations","Diluted earnings (loss) per share from continuing operations","num:perShareItemType","duration"]
["EarningsPerShareForDiscontinuedOperationsAbstract","Earnings per share for discontinued operations [Abstract]","xbrli:stringItemType","duration"]
["BasicEarningsLossPerShareFromDiscontinuedOperations","Basic earnings (loss) per share from discontinued operations","num:perShareItemType","duration"]
["DilutedEarningsLossPerShareFromDiscontinuedOperations","Diluted earnings (loss) per share from discontinued operations","num:perShareItemType","duration"]
["EarningsPerShareForContinuingAndDiscontinuedOperationsAbstract","Earnings per share for continuing and discontinued operations [Abstract]","xbrli:stringItemType","duration"]
["BasicEarningsLossPerShareFromContinuingAndDiscontinuedOperations","Basic earnings (loss) per share from continuing and discontinued operations","num:perShareItemType","duration"]
["DilutedEarningsLossPerShareFromContinuingAndDiscontinuedOperations","Diluted earnings (loss) per share from continuing and discontinued operations","num:perShareItemType","duration"]
["OtherComprehensiveItemsThatWillNotBeReclassifiedToProfitAndLossAbstract","Other comprehensive items that will not be reclassified to profit and loss [Abstract]","xbrli:stringItemType","duration"]
["OtherComprehensiveItemsThatWillNotBeReclassifiedToProfitAndLossTable","Other comprehensive items that will not be reclassified to profit and loss [Table]","xbrli:stringItemType","duration"]
["ItemsThatWillNotBeReclassifiedToProfitAndLossAxis","Items that will not be reclassified to profit and loss [Axis]","xbrli:stringItemType","duration"]
["OtherComprehensiveItemsThatWillNotBeReclassifiedToProfitAndLossLineItems","Other comprehensive items that will not be reclassified to profit and loss [Line items]","xbrli:stringItemType","duration"]
["DescriptionOfItemThatWillNotBeReclassifiedToProfitAndLoss","Description of item that will not be reclassified to profit and loss","xbrli:stringItemType","duration"]
["AmountOfItemThatWillNotBeReclassifiedToProfitAndLoss","Amount of item that will not be reclassified to profit and loss","xbrli:monetaryItemType","duration"]
["OtherComprehensiveItemsThatWillBeReclassifiedToProfitAndLossAbstract","Other comprehensive items that will be reclassified to profit and loss [Abstract]","xbrli:stringItemType","duration"]
["OtherComprehensiveItemsThatWillBeReclassifiedToProfitAndLossTable","Other comprehensive items that will be reclassified to profit and loss [Table]","xbrli:stringItemType","duration"]
["ItemsThatWillBeReclassifiedToProfitAndLossAxis","Items that will be reclassified to profit and loss [Axis]","xbrli:stringItemType","duration"]
["OtherComprehensiveItemsThatWillBeReclassifiedToProfitAndLossLineItems","Other comprehensive items that will be reclassified to profit and loss [Line items]","xbrli:stringItemType","duration"]
["DescriptionOfItemThatWillBeReclassifiedToProfitAndLoss","Description of item that will be reclassified to profit and loss","xbrli:stringItemType","duration"]
["AmountOfItemThatWillBeReclassifiedToProfitAndLoss","Amount of item that will be reclassified to profit and loss","xbrli:monetaryItemType","duration"]
["IncomeTaxRelatingToItmesThatWillNotBeReclassifiedToProfitOrLoss","Income tax relating to items that will not be reclassified to profit or loss","xbrli:monetaryItemType","duration"]
["IncomeTaxRelatingToItmesThatWillBeReclassifiedToProfitOrLoss","Income tax relating to items that will be reclassified to profit or loss","xbrli:monetaryItemType","duration"]
["OtherComprehensiveIncome","Other comprehensive income","xbrli:monetaryItemType","duration"]
["TotalProfitOrLossAttributableToAbstract","Total profit or loss attributable to [Abstract]","xbrli:stringItemType","duration"]
["TotalComprehensiveIncomeForThePeriodAttributableToAbstract","Total comprehensive income for the period attributable to [Abstract]","xbrli:stringItemType","duration"]
["OtherComprehensiveIncomeAbstract","Other comprehensive income [Abstract]","xbrli:stringItemType","duration"]
["GeneralInformationAbstract","General information [Abstract]","xbrli:stringItemType","duration"]
["ScripCode","Scrip code","in-bse-fin-types:ScripCode","duration","This is a mandatory field. Should be valid SCRIP CODE. "]
["NameOfTheCompany","Name of the company","xbrli:stringItemType","duration"]
["ResultType","Result type","xbrli:stringItemType","duration"]
["DateOfBoardMeetingWhenFinancialResultsWereApproved","Date of board meeting when financial results were approved","xbrli:dateItemType","duration","Date of board meeting when results were approved shall not be before the current financial year."]
["DateOfStartOfReportingPeriod","Date of start of reporting period","xbrli:dateItemType","duration"]
["DateOfEndOfReportingPeriod","Date of end of reporting period","xbrli:dateItemType","duration"]
["NatureOfReportStandaloneConsolidated","Nature of report standalone consolidated","xbrli:stringItemType","duration"]
["ReportingQuarter","Reporting quarter","xbrli:stringItemType","duration"]
["DescriptionOfPresentationCurrency","Description of presentation currency","xbrli:stringItemType","duration"]
["LevelOfRoundingUsedInFinancialStatements","Level of rounding used in financial statements","in-bse-fin-types:LevelOfRounding","duration"]
["WhetherResultsAreAuditedOrUnaudited","Whether results are audited or unaudited","xbrli:stringItemType","duration"]
["IsCompanyReportingMultisegmentOrSingleSegment","Is company reporting multisegment or single segment","xbrli:stringItemType","duration"]
["DescriptionOfSingleSegment","Description of single segment","xbrli:stringItemType","duration","This is a mandatory field as \"Single Segment\" selected in Segement Reporting field."]
["StatementOfFinancialResultsByBanksAbstract","Statement of financial results by banks [Abstract]","xbrli:stringItemType","duration"]
["DisclosureOfOperationalResultAbstract","Disclosure of operational result [Abstract]","xbrli:stringItemType","duration"]
["DisclosureOfRevenueFromOperationsAbstract","Disclosure of revenue from operations [Abstract]","xbrli:stringItemType","duration"]
["InterestEarnedAbstract","Interest earned [Abstract]","xbrli:stringItemType","duration"]
["InterestOrDiscountOnAdvancesOrBills","Interest or discount on advances or bills","xbrli:monetaryItemType","duration"]
["RevenueOnInvestments","Revenue on investments","xbrli:monetaryItemType","duration"]
["InterestOnBalancesWithReserveBankOfIndiaAndOtherInterBankFunds","Interest on balances with reserve bank of India and other inter bank funds","xbrli:monetaryItemType","duration"]
["OtherInterest","Other interest","xbrli:monetaryItemType","duration"]
["InterestEarned","Interest earned","xbrli:monetaryItemType","duration"]
["OtherIncome","Other income","xbrli:monetaryItemType","duration"]
["Revenue","Revenue","xbrli:monetaryItemType","duration"]
["InterestExpended","Interest expended","xbrli:monetaryItemType","duration"]
["OperatingExpensesAbstract","Operating expenses [Abstract]","xbrli:stringItemType","duration"]
["EmployeesCost","Employees cost","xbrli:monetaryItemType","duration"]
["OtherOperatingExpenses","Other operating expenses","xbrli:monetaryItemType","duration"]
["OperatingExpenses","Operating expenses","xbrli:monetaryItemType","duration"]
["ExpenditureExcludingProvisionsAndContingencies","Expenditure excluding provisions and contingencies","xbrli:monetaryItemType","duration"]
["OperatingProfitBeforeProvisionAndContingencies","Operating profit before provision and contingencies","xbrli:monetaryItemType","duration"]
["ProvisionsOtherThanTaxAndContingencies","Provisions other than tax and contingencies","xbrli:monetaryItemType","duration"]
["ExceptionalItems","Exceptional items","xbrli:monetaryItemType","duration"]
["ProfitLossFromOrdinaryActivitiesBeforeTax","Profit (loss) from ordinary activities before tax","xbrli:monetaryItemType","duration"]
["TaxExpense","Tax expense","xbrli:monetaryItemType","duration"]
["ProfitLossFromOrdinaryActivitiesAfterTax","Profit (loss) from ordinary activities after tax","xbrli:monetaryItemType","duration"]
["ExtraordinaryItems","Extraordinary items","xbrli:monetaryItemType","duration"]
["ProfitLossForThePeriod","Profit (loss) for the period","xbrli:monetaryItemType","duration"]
["ShareOfProfitLossOfAssociates","Share of profit (loss) of associates","xbrli:monetaryItemType","duration"]
["MinorityInterest","Minority interest","xbrli:monetaryItemType","instant"]
["ProfitLossAfterTaxesMinorityInterestAndShareOfProfitLossOfAssociates","Profit (loss) after taxes minority interest and share of profit (loss) of associates","xbrli:monetaryItemType","duration"]
["DetailsOfPaidupEquityShareCapitalAbstract","Details of paid up equity share capital [Abstract]","xbrli:stringItemType","duration"]
["DetailsOfPaidupDebtCapitalAbstract","Details of paid up debt capital [Abstract]","xbrli:stringItemType","duration"]
["PaidUpValueOfEquityShareCapital","Paid-up equity share capital","xbrli:monetaryItemType","duration"]
["FaceValueOfEquityShareCapital","Face value of equity share capital","num:perShareItemType","duration"]
["ReserveExcludingRevaluationReserves","Reserve excluding revaluation reserves","xbrli:monetaryItemType","duration"]
["AnalyticalRatiosAbstract","Analytical ratios [Abstract]","xbrli:stringItemType","duration"]
["PercentageOfShareHeldByGovernmentOfIndia","Percentage of share held by government of India","num:percentItemType","duration"]
["CapitalAdequacyRatioAbstract","Capital adequacy ratio [Abstract]","xbrli:stringItemType","duration"]
["EarningsPerShareAbstract","Earnings per share [Abstract]","xbrli:stringItemType","duration"]
["EarningsPerShareBeforeExtraordinaryItemsAbstract","Earnings per share before extraordinary items [Abstract]","xbrli:stringItemType","duration"]
["BasicEarningsPerShareBeforeExtraordinaryItems","Basic earnings per share before extraordinary items","num:perShareItemType","duration"]
["DilutedEarningsPerShareBeforeExtraordinaryItems","Diluted earnings per share before extraordinary items","num:perShareItemType","duration"]
["EarningsPerShareAfterExtraordinaryItemsAbstract","Earnings per share after extraordinary items [Abstract]","xbrli:stringItemType","duration"]
["BasicEarningsPerShareAfterExtraordinaryItems","Basic earnings per share after extraordinary items","num:perShareItemType","duration"]
["DilutedEarningsPerShareAfterExtraordinaryItems","Diluted earnings per share after extraordinary items","num:perShareItemType","duration"]
["NpaRatiosAbstract","NPA Ratios [Abstract]","xbrli:stringItemType","duration"]
["GrossNonPerformingAssets","Gross non performing assets","xbrli:monetaryItemType","duration"]
["PercentageOfGrossNpa","Percentage of gross NPA","num:percentItemType","duration"]
["NonPerformingAssets","Non performing assets","xbrli:monetaryItemType","duration"]
["PercentageOfNpa","Percentage of net NPA","num:percentItemType","duration"]
["ReturnOnAssets","Return on assets","num:percentItemType","duration"]
["DisclosureOfNotesOnFinancialResultsExplanatoryTextBlock","Disclosure of notes on financial results explanatory [Text Block]","nonnum:textBlockItemType","duration"]
["StatementOfAssetsAndLiabilitiesAbstract","Statement of assets and liabilities [Abstract]","xbrli:stringItemType","duration"]
["CapitalAndLiabilitiesAbstract","Capital and liabilities [Abstract]","xbrli:stringItemType","duration"]
["Capital","Capital","xbrli:monetaryItemType","instant"]
["ReservesAndSurplus","Reserves and surplus","xbrli:monetaryItemType","instant"]
["Deposits","Deposits","xbrli:monetaryItemType","instant"]
["Borrowings","Borrowings","xbrli:monetaryItemType","instant"]
["OtherLiabilitiesAndProvisions","Other liabilities and provisions","xbrli:monetaryItemType","instant"]
["CapitalAndLiabilities","Capital and Liabilities","xbrli:monetaryItemType","instant"]
["AssetsAbstract","Assets [Abstract]","xbrli:stringItemType","duration"]
["CashAndBalancesWithReserveBankOfIndia","Cash and balances with Reserve Bank of India","xbrli:monetaryItemType","instant"]
["BalancesWithBanksAndMoneyAtCallAndShortNotice","Balances with banks and money at call and short notice","xbrli:monetaryItemType","instant"]
["Investments","Investments","xbrli:monetaryItemType","instant"]
["Advances","Advances","xbrli:monetaryItemType","instant"]
["FixedAssets","Fixed assets","xbrli:monetaryItemType","instant"]
["OtherAssets","Other assets","xbrli:monetaryItemType","instant"]
["Assets","Assets","xbrli:monetaryItemType","instant"]
["DisclosureOfNotesOnAssetsAndLiabilitiesExplanatoryTextBlock","Disclosure of notes on assets and liabilities explanatory [Text Block]","nonnum:textBlockItemType","duration"]
["TaxExpenseAbstract","Tax expense [Abstract]","xbrli:stringItemType","duration"]
["CurrentTax","Current tax","xbrli:monetaryItemType","duration"]
["DisclosuresRelatingToSegmentAbstract","Disclosures relating to segment [Abstract]","xbrli:stringItemType","duration"]
["DisclosuresRelatingToSegmentRevenueAbstract","Disclosures relating to segment revenue [Abstract]","xbrli:stringItemType","duration"]
["DisclosuresRelatingToSegmentRevenueTable","Disclosures relating to segment revenue [Table]","xbrli:stringItemType","duration"]
["ReportableSegmentsAxis","Reportable segments [Axis]","xbrli:stringItemType","duration"]
["ReportableSegmentsMember","Reportable segments [Member]","nonnum:domainItemType","duration"]
["ReportableSegments1Member","Reportable segments 1 [Member]","nonnum:domainItemType","duration"]
["ReportableSegments2Member","Reportable segments 2 [Member]","nonnum:domainItemType","duration"]
["ReportableSegments3Member","Reportable segments 3 [Member]","nonnum:domainItemType","duration"]
["ReportableSegments4Member","Reportable segments 4 [Member]","nonnum:domainItemType","duration"]
["ReportableSegments5Member","Reportable segments 5 [Member]","nonnum:domainItemType","duration"]
["ReportableSegments6Member","Reportable segments 6 [Member]","nonnum:domainItemType","duration"]
["ReportableSegments7Member","Reportable segments 7 [Member]","nonnum:domainItemType","duration"]
["ReportableSegments8Member","Reportable segments 8 [Member]","nonnum:domainItemType","duration"]
["ReportableSegments9Member","Reportable segments 9 [Member]","nonnum:domainItemType","duration"]
["ReportableSegments10Member","Reportable segments 10 [Member]","nonnum:domainItemType","duration"]
["ReportableSegments11Member","Reportable segments 11 [Member]","nonnum:domainItemType","duration"]
["ReportableSegments12Member","Reportable segments 12 [Member]","nonnum:domainItemType","duration"]
["ReportableSegments13Member","Reportable segments 13 [Member]","nonnum:domainItemType","duration"]
["ReportableSegments14Member","Reportable segments 14 [Member]","nonnum:domainItemType","duration"]
["ReportableSegments15Member","Reportable segments 15 [Member]","nonnum:domainItemType","duration"]
["DisclosuresRelatingToSegmentRevenueLineItems","Disclosures relating to segment revenue [Lineitems]","xbrli:stringItemType","duration"]
["SegmentRevenue","Segment revenue","xbrli:monetaryItemType","duration"]
["InterSegmentRevenue","Inter segment revenue","xbrli:monetaryItemType","duration"]
["RevenueFromOperations","Revenue from operations","xbrli:monetaryItemType","duration"]
["DisclosuresRelatingToSegmentResultAbstract","Disclosures relating to segment result [Abstract]","xbrli:stringItemType","duration"]
["DisclosuresRelatingToSegmentResultTable","Disclosures relating to segment result [Table]","xbrli:stringItemType","duration"]
["DisclosuresRelatingToSegmentResultLineItems","Disclosures relating to segment result [Lineitems]","xbrli:stringItemType","duration"]
["SegmentProfitLossBeforeTaxAndFinanceCosts","Segment profit (loss) before tax and finance costs","xbrli:monetaryItemType","duration"]
["ProfitBeforeTax","Profit before tax","xbrli:monetaryItemType","duration"]
["OtherUnallocableExpenditureNetOffUnAllocableIncome","Other unallocable expenditure net off un-allocable income","xbrli:monetaryItemType","duration"]
["DescriptionOfReportableSegment","Description of reportable segment","xbrli:stringItemType","duration"]
["DisclosureOfNotesOnSegmentsExplanatoryTextBlock","Disclosure of notes on segments explanatory [text block]","nonnum:textBlockItemType","duration"]
["DateOnWhichPriorIntimationOfTheMeetingForConsideringFinancialResultsWasInformedToTheExchange","Date on which prior intimation of the meeting for considering financial results was informed to the exchange","xbrli:dateItemType","duration","\"Date on which prior intimation of the meeting for considering financial results was informed to the exchange\" shall not be later than \"Date of board meeting when results were approved\" and shall not be before the current financial year."]
["StatementOfFinancialResultsMainAbstract","Statement of financial results Main [Abstract]","xbrli:stringItemType","duration"]
["RevenueAbstract","Revenue [Abstract]","xbrli:stringItemType","duration"]
["CostOfMaterialsConsumed","Cost of materials consumed","xbrli:monetaryItemType","duration"]
["PurchasesOfStockInTrade","Purchases of stock-in-trade","xbrli:monetaryItemType","duration"]
["ChangesInInventoriesOfFinishedGoodsWorkInProgressAndStockInTrade","Changes in inventories of finished goods, work-in-progress and stock-in-trade","xbrli:monetaryItemType","duration"]
["EmployeeBenefitExpense","Employee benefit expense","xbrli:monetaryItemType","duration"]
["DepreciationAndAmortisationExpense","Depreciation and amortisation expense","xbrli:monetaryItemType","duration"]
["FinanceCosts","Finance costs","xbrli:monetaryItemType","duration"]
["DetailsOfOtherExpensesAbstract","Details of other expenses [Abstract]","xbrli:stringItemType","duration"]
["DetailsOfOtherExpensesTable","Details of other expenses [Table]","xbrli:stringItemType","duration"]
["DetailsOfOtherExpensesAxis","Details of other expenses [Axis]","xbrli:stringItemType","duration"]
["OtherExpensesMember","Other expenses [Member]","nonnum:domainItemType","duration"]
["OtherExpenses1Member","Other expenses 1 [Member]","nonnum:domainItemType","duration"]
["OtherExpenses2Member","Other expenses 2 [Member]","nonnum:domainItemType","duration"]
["OtherExpenses3Member","Other expenses 3 [Member]","nonnum:domainItemType","duration"]
["OtherExpenses4Member","Other expenses 4 [Member]","nonnum:domainItemType","duration"]
["OtherExpenses5Member","Other expenses 5 [Member]","nonnum:domainItemType","duration"]
["OtherExpenses6Member","Other expenses 6 [Member]","nonnum:domainItemType","duration"]
["OtherExpenses7Member","Other expenses 7 [Member]","nonnum:domainItemType","duration"]
["OtherExpenses8Member","Other expenses 8 [Member]","nonnum:domainItemType","duration"]
["OtherExpenses9Member","Other expenses 9 [Member]","nonnum:domainItemType","duration"]
["OtherExpenses10Member","Other expenses 10 [Member]","nonnum:domainItemType","duration"]
["DetailsOfOtherExpensesLineItems","Details of other expenses  [line items]","xbrli:stringItemType","duration"]
["DescriptionOfOtherExpenses","Description of other expenses","xbrli:stringItemType","duration"]
["OtherExpenses","Other expenses","xbrli:monetaryItemType","duration"]
["EquityAndLiabilitiesAbstract","Equity and liabilities [Abstract]","xbrli:stringItemType","duration"]
["ShareholdersFundsAbstract","Shareholders' funds [Abstract]","xbrli:stringItemType","duration"]
["ShareCapital","Share capital","xbrli:monetaryItemType","instant"]
["MoneyReceivedAgainstShareWarrants","Money received against share warrants","xbrli:monetaryItemType","instant"]
["ShareholdersFunds","Shareholders' funds","xbrli:monetaryItemType","instant"]
["ShareApplicationMoneyPendingAllotment","Share application money pending allotment","xbrli:monetaryItemType","instant"]
["DeferredGovernmentGrants","Deferred government grants","xbrli:monetaryItemType","instant"]
["NoncurrentLiabilitiesAbstract","Non-current liabilities [Abstract]","xbrli:stringItemType","duration"]
["LongTermBorrowings","Long-term borrowings","xbrli:monetaryItemType","instant"]
["DeferredTaxLiabilitiesNet","Deferred tax liabilities (net)","xbrli:monetaryItemType","instant"]
["ForeignCurrencyMonetaryItemTranslationDifferenceLiabilityAccount","Foreign currency monetary item translation difference liability account","xbrli:monetaryItemType","instant"]
["OtherLongTermLiabilities","Other long-term liabilities","xbrli:monetaryItemType","instant"]
["LongTermProvisions","Long-term provisions","xbrli:monetaryItemType","instant"]
["NoncurrentLiabilities","Non-current liabilities","xbrli:monetaryItemType","instant"]
["CurrentLiabilitiesAbstract","Current liabilities [Abstract]","xbrli:stringItemType","duration"]
["ShortTermBorrowings","Short-term borrowings","xbrli:monetaryItemType","instant"]
["TradePayables","Trade payables","xbrli:monetaryItemType","instant"]
["OtherCurrentLiabilities","Other current liabilities","xbrli:monetaryItemType","instant"]
["ShortTermProvisions","Short-term provisions","xbrli:monetaryItemType","instant"]
["CurrentLiabilities","Current liabilities","xbrli:monetaryItemType","instant"]
["EquityAndLiabilities","Total equity and liabilites","xbrli:monetaryItemType","instant","\"Total Assets\" must match with \"Total Equity and Liabilities\" mentioned in sheet \"Asset Liabilities\""]
["NoncurrentAssetsAbstract","Non-current assets [Abstract]","xbrli:stringItemType","duration"]
["FixedAssetsAbstract","Fixed assets [Abstract]","xbrli:stringItemType","duration"]
["TangibleAssets","Tangible assets","xbrli:monetaryItemType","instant"]
["ProducingProperties","Producing properties","xbrli:monetaryItemType","instant"]
["IntangibleAssets","Intangible assets","xbrli:monetaryItemType","instant"]
["PreproducingProperties","Preproducing properties","xbrli:monetaryItemType","instant"]
["TangibleAssetsCapitalWorkInProgress","Tangible assets capital work-in-progress","xbrli:monetaryItemType","instant"]
["IntangibleAssetsUnderDevelopmentOrWorkInProgress","Intangible assets under development or work-in-progress","xbrli:monetaryItemType","instant"]
["NoncurrentInvestments","Non-current investments","xbrli:monetaryItemType","instant"]
["DeferredTaxAssetsNet","Deferred tax assets (net)","xbrli:monetaryItemType","instant"]
["ForeignCurrencyMonetaryItemTranslationDifferenceAssetAccount","Foreign currency monetary item translation difference asset account","xbrli:monetaryItemType","instant"]
["LongTermLoansAndAdvances","Long-term loans and advances","xbrli:monetaryItemType","instant"]
["OtherNoncurrentAssets","Other non-current assets","xbrli:monetaryItemType","instant"]
["NoncurrentAssets","Non-current assets","xbrli:monetaryItemType","instant"]
["CurrentAssetsAbstract","Current assets [Abstract]","xbrli:stringItemType","duration"]
["CurrentInvestments","Current investments","xbrli:monetaryItemType","instant"]
["Inventories","Inventories","xbrli:monetaryItemType","instant"]
["TradeReceivables","Trade receivables","xbrli:monetaryItemType","instant"]
["ShortTermLoansAndAdvances","Short-term loans and advances","xbrli:monetaryItemType","instant"]
["OtherCurrentAssets","Other current assets","xbrli:monetaryItemType","instant"]
["CurrentAssets","Current assets","xbrli:monetaryItemType","instant"]
["ProfitLossForThePeriodFromContinuingOperations","Profit (loss) for the period from continuing operations","xbrli:monetaryItemType","duration"]
["ProfitLossFromDiscontinuingOperationsBeforeTax","Profit (loss) from discontinuing operations before tax","xbrli:monetaryItemType","duration"]
["TaxExpenseOfDiscontinuingOperations","Tax expense of discontinuing operations","xbrli:monetaryItemType","duration"]
["ProfitLossFromDiscontinuingOperationAfterTax","Profit (loss) from discontinuing operation after tax","xbrli:monetaryItemType","duration"]
["DebtEquityRatio","Debt equity ratio","num:percentItemType","duration"]
["DebtServiceCoverageRatio","Debt service coverage ratio","num:percentItemType","duration"]
["InterestServiceCoverageRatio","Interest service coverage ratio","num:percentItemType","duration"]
["ClassOfSecurity","Class of security","in-bse-fin-types:ClassOfSecurity","duration"]
["GoodwillOnConsolidation","Goodwill on consolidation","xbrli:monetaryItemType","instant"]
["SegmentRevenueFromOperations","Segment revenue from operations","xbrli:monetaryItemType","duration"]
["SegmentFinanceCosts","Segment finance costs","xbrli:monetaryItemType","duration"]
["Expenses","Expenses","xbrli:monetaryItemType","duration"]
["DateOfStartOfFinancialYear","Date of start of financial year","xbrli:dateItemType","duration"]
["DateOfEndOfFinancialYear","Date of end of financial year","xbrli:dateItemType","duration"]
["ProfitLossOfMinorityInterest","Profit (loss) of minority interest","xbrli:monetaryItemType","duration"]
["InvestmentsAccountedForUsingEquityMethod","Investments accounted for using equity method","xbrli:monetaryItemType","instant"]
["RegulatoryDeferralAccountDebitBalancesAndRelatedDeferredTaxAssets","Regulatory deferral account debit balances and related deferred tax Assets","xbrli:monetaryItemType","instant"]
["EquityAttributableToOwnersOfParentAbstract","Equity attributable to owners of parent [Abstract]","xbrli:stringItemType","duration"]
["EquityAttributableToOwnersOfParent","Equity attributable to owners of parent","xbrli:monetaryItemType","instant"]
["NonControllingInterest","Non controlling interest","xbrli:monetaryItemType","instant"]
["DeferredGovernmentGrantsNoncurrent","Deferred government grants, Non-current","xbrli:monetaryItemType","instant"]
["DeferredGovernmentGrantsCurrent","Deferred government grants, Current","xbrli:monetaryItemType","instant"]
["RegulatoryDeferralAccountCreditBalancesAndRelatedDeferredTaxLiability","Regulatory deferral account credit balances and related deferred tax liability","xbrli:monetaryItemType","instant"]
["ExpenditureOnProductionTransportationAndOtherExpenditurePertainingToExplorationAndProductionActivities","Expenditure on production, transportation and other expenditure pertaining to exploration and production activities","xbrli:monetaryItemType","duration"]
["ExceptionalItemsBeforeTax","Exceptional items before tax","xbrli:monetaryItemType","duration"]
["NetMovementInRegulatoryDeferralAccountBalancesRelatedToProfitOrLossAndTheRelatedDeferredTaxMovement","Net movement in regulatory deferral account balances related to profit or loss and the related deferred tax movement","xbrli:monetaryItemType","duration"]
["CET1Ratio","CET 1 ratio","num:percentItemType","duration"]
["AdditionalTier1Ratio","Additional tier 1 ratio","num:percentItemType","duration"]
["OutstandingDuesOfMicroEnterprisesAndSmallEnterprises","Outstanding dues of micro enterprises and small enterprises","xbrli:monetaryItemType","instant"]
["OutstandingDuesOfCreditorsOtherThanMicroEnterprisesAndSmallEnterprises","Outstanding dues of creditors other than micro enterprises and small enterprises","xbrli:monetaryItemType","instant"]
["ProfitBeforeExceptionalAndExtraordinaryItemsAndTax","Profit before exceptional and extraordinary items and tax","xbrli:monetaryItemType","duration"]
["ProfitBeforeExtraordinaryItemsAndTax","Profit before extraordinary items and tax","xbrli:monetaryItemType","duration"]
["TypedDefaultAbstract","Typed default [Abstract]","xbrli:stringItemType","duration"]
["TypedDefaultTable","Typed default [Table]","xbrli:stringItemType","duration"]
["TypedDefaultAxis","Typed default [Axis]","xbrli:stringItemType","duration"]
["TypedDefaultDomain","Typed default domain","nonnum:domainItemType","duration"]
["StartTimeOfBoardMeeting","Start time of board meeting","xbrli:timeItemType","duration"]
["EndTimeOfBoardMeeting","End time of board meeting","xbrli:timeItemType","duration","\"End time of board meeting\" must be greater than \"Start time of board meeting\""]
["NameOfBank","Name of bank","xbrli:stringItemType","duration"]
["DetailsOfOtherOperatingExpensesAbstract","Details of other operating expenses [Abstract]","xbrli:stringItemType","duration"]
["DetailsOfOtherOperatingExpensesTable","Details of other operating expenses [Table]","xbrli:stringItemType","duration"]
["DetailsOfOtherOperatingExpensesAxis","Details of other operating expenses [Axis]","xbrli:stringItemType","duration"]
["OtherOperatingExpensesMember","Other operating expenses [Member]","nonnum:domainItemType","duration"]
["OtherOperatingExpenses1Member","Other operating expenses 1 [Member]","nonnum:domainItemType","duration"]
["OtherOperatingExpenses2Member","Other operating expenses 2 [Member]","nonnum:domainItemType","duration"]
["OtherOperatingExpenses3Member","Other operating expenses 3 [Member]","nonnum:domainItemType","duration"]
["OtherOperatingExpenses4Member","Other operating expenses 4 [Member]","nonnum:domainItemType","duration"]
["OtherOperatingExpenses5Member","Other operating expenses 5 [Member]","nonnum:domainItemType","duration"]
["OtherOperatingExpenses6Member","Other operating expenses 6 [Member]","nonnum:domainItemType","duration"]
["OtherOperatingExpenses7Member","Other operating expenses 7 [Member]","nonnum:domainItemType","duration"]
["OtherOperatingExpenses8Member","Other operating expenses 8 [Member]","nonnum:domainItemType","duration"]
["OtherOperatingExpenses9Member","Other operating expenses 9 [Member]","nonnum:domainItemType","duration"]
["OtherOperatingExpenses10Member","Other operating expenses 10 [Member]","nonnum:domainItemType","duration"]
["DetailsOfOtherOperatingExpensesLineItems","Details of other operating expenses  [Line Items]","xbrli:stringItemType","duration"]
["DescriptionOfOperatingExpenses","Description of operating expenses","xbrli:stringItemType","duration"]
["SegmentProfitBeforeTax","Segment profit before tax","xbrli:monetaryItemType","duration"]
["ProfitLossForPeriodBeforeMinorityInterest","Profit (loss) for period before minority interest","xbrli:monetaryItemType","duration"]
["ReportableSegmentsFinanceCostsAxis","Reportable segments finance costs [Axis]","xbrli:stringItemType","duration"]
["StatementOfFinancialResultsIndASAbstract","Statement of financial results Ind AS [Abstract]","xbrli:stringItemType","duration"]
["DisclosuresRelatingToSegmentAssetsAbstract","Disclosures relating to segment assets [Abstract]","xbrli:stringItemType","duration"]
["DisclosuresRelatingToSegmentAssetsTable","Disclosures relating to segment assets [Table]","xbrli:stringItemType","duration"]
["ReportableSegmentAssetsAxis","Reportable segment assets [Axis]","xbrli:stringItemType","duration"]
["DisclosuresRelatingToSegmentAssetsLineItems","Disclosures relating to segment assets [Line Items]","xbrli:stringItemType","duration"]
["SegmentAssets","Segment assets","xbrli:monetaryItemType","instant"]
["UnAllocableAssets","Un-allocable assets","xbrli:monetaryItemType","instant"]
["NetSegmentAssets","Net segment assets","xbrli:monetaryItemType","instant"]
["DisclosuresRelatingToSegmentLiabilitiesAbstract","Disclosures relating to segment liabilities [Abstract]","xbrli:stringItemType","duration"]
["DisclosuresRelatingToSegmentLiabilitiesTable","Disclosures relating to segment liabilities [Table]","xbrli:stringItemType","duration"]
["ReportableSegmentLiabilitiesAxis","Reportable segment liabilities [Axis]","xbrli:stringItemType","duration"]
["DisclosuresRelatingToSegmentLiabilitiesLineItems","Disclosures relating to segment liabilities [Line Items]","xbrli:stringItemType","duration"]
["SegmentLiabilities","Segment liabilities","xbrli:monetaryItemType","instant"]
["UnAllocableLiabilities","Un-allocable liabilities","xbrli:monetaryItemType","instant"]
["NetSegmentLiabilities","Net segment liabilities","xbrli:monetaryItemType","instant"]
["Symbol","Symbol","xbrli:stringItemType","duration"]
["MSEISymbol","MSEI symbol","xbrli:stringItemType","duration"]
["ISIN","ISIN","in-bse-fin-types:ISIN","duration"]
["TypeOfCompany","Type of company","in-bse-fin-types:TypeOfCompany","duration"]
["DeclarationOfUnmodifiedOpinionOrStatementOnImpactOfAuditQualification","Declaration of unmodified opinion or statement on impact of audit qualification","in-bse-fin-types:Declaration","duration","\"Not applicable\" is not allowed for \"Yearly\" reporting quarter."]
["StatementOfFinancialResultsNBFCAbstract","Statement of financial results by NBFC [Abstract]","xbrli:stringItemType","duration"]
["DividendIncome","Dividend income","xbrli:monetaryItemType","duration"]
["RentalIncome","Rental income","xbrli:monetaryItemType","duration"]
["FeesAndCommissionIncome","Fees and commission income","xbrli:monetaryItemType","duration"]
["NetGainOnFairValueChanges","Net gain on fair value changes","xbrli:monetaryItemType","duration"]
["NetGainOnDerecognitionOfFinancialInstrumentsUnderAmortisedCostCategory","Net gain on derecognition of financial instruments under amortised cost category","xbrli:monetaryItemType","duration"]
["RevenueFromSaleOfProduct","Revenue from sale of product","xbrli:monetaryItemType","duration"]
["RevenueFromSaleOfServices","Revenue from sale of services","xbrli:monetaryItemType","duration"]
["FeesAndCommissionExpense","Fees and commission expenses","xbrli:monetaryItemType","duration"]
["NetLossOnFairValueChanges","Net loss on fair value changes","xbrli:monetaryItemType","duration"]
["NetLossOnDerecognitionOfFinancialInstrumentsUnderAmortisedCostCategory","Net loss on derecognition of financial instruments under amortised cost category","xbrli:monetaryItemType","duration"]
["ImpairmentOnFinancialInstruments","Impairment on financial instruments","xbrli:monetaryItemType","duration"]
["DetailsOfOtherRevenueFromOperationsAbstract","Details of other revenue from operations [Abstract]","xbrli:stringItemType","duration"]
["DetailsOfOtherRevenueFromOperationsTable","Details of other revenue from operations [Table]","xbrli:stringItemType","duration"]
["DetailsOfOtherRevenueFromOperationsAxis","Details of other revenue from operations [Axis]","xbrli:stringItemType","duration"]
["OtherRevenueFromOperationsMember","Other revenue from operations [Member]","nonnum:domainItemType","duration"]
["OtherRevenueFromOperations1Member","Other revenue from operations 1 [Member]","nonnum:domainItemType","duration"]
["OtherRevenueFromOperations2Member","Other revenue from operations 2 [Member]","nonnum:domainItemType","duration"]
["OtherRevenueFromOperations3Member","Other revenue from operations 3 [Member]","nonnum:domainItemType","duration"]
["OtherRevenueFromOperations4Member","Other revenue from operations 4 [Member]","nonnum:domainItemType","duration"]
["OtherRevenueFromOperations5Member","Other revenue from operations 5 [Member]","nonnum:domainItemType","duration"]
["OtherRevenueFromOperations6Member","Other revenue from operations 6 [Member]","nonnum:domainItemType","duration"]
["OtherRevenueFromOperations7Member","Other revenue from operations 7 [Member]","nonnum:domainItemType","duration"]
["OtherRevenueFromOperations8Member","Other revenue from operations 8 [Member]","nonnum:domainItemType","duration"]
["OtherRevenueFromOperations9Member","Other revenue from operations 9 [Member]","nonnum:domainItemType","duration"]
["OtherRevenueFromOperations10Member","Other revenue from operations 10 [Member]","nonnum:domainItemType","duration"]
["DetailsOfOtherRevenueFromOperationsLineItems","Details of other revenue from operations [Line Items]","xbrli:stringItemType","duration"]
["DescriptionOfOtherRevenueFromOperations","Description of other revenue from operations","xbrli:stringItemType","duration"]
["OtherRevenueFromOperations","Other revenue from operations","xbrli:monetaryItemType","duration"]
["FinanicalAssetsAbstract","Finanical assets [Abstract]","xbrli:stringItemType","duration"]
["ReceivablesAbstract","Receivables [Abstract]","xbrli:stringItemType","duration"]
["OtherReceivables","Other receivables","xbrli:monetaryItemType","instant"]
["Loans","Loans","xbrli:monetaryItemType","instant"]
["OtherFinancialAssets","Other financial assets","xbrli:monetaryItemType","instant"]
["NonFinancialAssetAbstract","Non financial assets","xbrli:stringItemType","duration"]
["OtherNonFinancialAssets","Other non-financial assets","xbrli:monetaryItemType","instant"]
["FinancialLiabilitiesAbstract","Financial liabilities [Abstract]","xbrli:stringItemType","duration"]
["DerivativeFinancialInstrumentsFinancialAssets","Derivative financial instruments - Financial Assets","xbrli:monetaryItemType","instant"]
["DerivativeFinancialInstrumentsFinancialLiabilities","Derivative financial instruments - Financial Liabilities","xbrli:monetaryItemType","instant"]
["Payables","Payables","xbrli:monetaryItemType","instant"]
["TradePayablesAbstract","Trade payables [Abstract]","xbrli:stringItemType","duration"]
["TotalOutstandingDuesOfMicroEnterpriseAndSmallEnterprise","Total outstanding dues of micro enterprises and small enterprises","xbrli:monetaryItemType","instant"]
["TotalOutstandingDuesOfCreditorsOtherThanMicroEnterpriseAndSmallEnterprise","Total outstanding dues of creditors other than micro enterprises and small enterprises","xbrli:monetaryItemType","instant"]
["OtherPayablesAbstract","Other payables [Abstract]","xbrli:stringItemType","duration"]
["TotalOutstandingDuesOfMicroEnterpriseAndSmallEnterpriseOtherPayables","Total outstanding dues of micro enterprises and small enterprises payables","xbrli:monetaryItemType","instant"]
["TotalOutstandingDuesOfCreditorsOtherThanMicroEnterpriseAndSmallEnterpriseOtherPayables","Total outstanding dues of creditors other than micro enterprises and small enterprises payables","xbrli:monetaryItemType","instant"]
["DebtSecurities","Debt securities","xbrli:monetaryItemType","instant"]
["SubordinatedLiabilities","Subordinated liabilities","xbrli:monetaryItemType","instant"]
["OtherFinancialLiabilities","Other financial liabilities","xbrli:monetaryItemType","instant"]
["FinancialLiabilities","Financial liabilities","xbrli:monetaryItemType","instant"]
["NonFinancialLiabilitiesAbstract","Non financial liabilities [Abstract]","xbrli:stringItemType","duration"]
["Provisions","Provisions","xbrli:monetaryItemType","instant"]
["NonFinancialLiabilities","Non financial liabilities","xbrli:monetaryItemType","instant"]
["ExpensesAbstract","Expenses [Abstract]","xbrli:stringItemType","duration"]
["RevenueFromOperationsAbstract","Revenue from operations [Abstract]","xbrli:stringItemType","duration"]
["FinanicalAssets","Finanical assets","xbrli:monetaryItemType","instant"]
["NonFinancialAssets","Non-financial assets","xbrli:monetaryItemType","instant"]
["OtherNonFinancialLiabilities","Other non financial liabilities","xbrli:monetaryItemType","instant"]
["DateOfStartOfBoardMeeting","Start date of board meeting","xbrli:dateItemType","duration","Start date of board meeting would be the next quarter then the reporting quarter (e.g. if results are submitted for June, quarter start time and end time would be from July) and shall not be earlier than Date of Prior Intimation."]
["DateOfEndOfBoardMeeting","End date of board meeting","xbrli:dateItemType","duration","End date of board meeting must be after or same day of start date of bord meeting and  would be the next quarter then the reporting quarter (e.g. if results are submitted for June, quarter start time and end time would be from July)."]
["StatementOfCashFlowsAbstract","Statement of cash flows [Abstract]","xbrli:stringItemType","duration"]
["CashFlowsFromUsedInOperatingActivitiesAbstract","Cash flows from used in operating activities [Abstract]","xbrli:stringItemType","duration"]
["ClassesOfCashReceiptsFromOperatingActivitiesAbstract","Classes of cash receipts from operating activities [Abstract]","xbrli:stringItemType","duration"]
["ReceiptsFromSalesOfGoodsAndRenderingOfServices","Receipts from sales of goods and rendering of services","xbrli:monetaryItemType","duration"]
["ReceiptsFromRoyaltiesFeesCommissionsAndOtherRevenue","Receipts from royalties fees, commissions and other revenue","xbrli:monetaryItemType","duration"]
["ReceiptsFromContractsHeldForDealingOrTradingPurpose","Receipts from contracts held for dealing or trading purpose","xbrli:monetaryItemType","duration"]
["ReceiptsFromPremiumsAndClaimsAnnuitiesAndOtherPolicyBenefits","Receipts from premiums and claims annuities and other policy benefits","xbrli:monetaryItemType","duration"]
["ReceiptsFromRentsAndSubsequentSalesOfAssetsHeldForRentalToOthersAndSubsequentlyHeldForSale","Receipts from rents and subsequent sales of assets held for rental to others and subsequently held for sale","xbrli:monetaryItemType","duration"]
["OtherCashReceiptsFromOperatingActivities","Other cash receipts from operating activities","xbrli:monetaryItemType","duration"]
["ClassesOfCashPaymentsFromOperatingActivitiesAbstract","Classes of cash payments from operating activities [Abstract]","xbrli:stringItemType","duration"]
["PaymentsToSuppliersForGoodsAndServices","Payments to suppliers for goods and services","xbrli:monetaryItemType","duration"]
["PaymentsFromContractsHeldForDealingOrTradingPurpose","Payments from contracts held for dealing or trading purpose","xbrli:monetaryItemType","duration"]
["PaymentsToAndOnBehalfOfEmployees","Payments to and on behalf of employees","xbrli:monetaryItemType","duration"]
["PaymentsForPremiumsAndClaimsAnnuitiesAndOtherPolicyBenefits","Payments for premiums and claims, annuities and other policy benefits","xbrli:monetaryItemType","duration"]
["PaymentsToManufactureOrAcquireAssetsHeldForRentalToOthersAndSubsequentlyHeldForSale","Payments to manufacture or acquire assets held for rental to others and subsequently held for sale","xbrli:monetaryItemType","duration"]
["OtherCashPaymentsFromOperatingActivities","Other cash payments from operating activities","xbrli:monetaryItemType","duration"]
["CashFlowsFromUsedInOperations","Net cash flows from (used in) operations operating activities","xbrli:monetaryItemType","duration"]
["DividendsReceivedClassifiedAsOperatingActivities","Dividends received operating activities","xbrli:monetaryItemType","duration"]
["InterestPaidClassifiedAsOperatingActivities","Interest paid operating activities","xbrli:monetaryItemType","duration"]
["InterestReceivedClassifiedAsOperatingActivities","Interest received operating activities","xbrli:monetaryItemType","duration"]
["IncomeTaxesPaidRefundClassifiedAsOperatingActivities","Income taxes paid (refund) operating activities","xbrli:monetaryItemType","duration"]
["OtherInflowsOutflowsOfCashClassifiedAsOperatingActivities","Other inflows (outflows) of cash operating activities","xbrli:monetaryItemType","duration"]
["CashFlowsFromUsedInOperatingActivities","Net cash flows from (used in) operating activities","xbrli:monetaryItemType","duration"]
["CashFlowsFromUsedInInvestingActivitiesAbstract","Cash flows from used in investing activities [Abstract]","xbrli:stringItemType","duration"]
["CashFlowsFromLosingControlOfSubsidiariesOrOtherBusinessesClassifiedAsInvestingActivities","Cash flows from losing control of subsidiaries or other businesses investing activities","xbrli:monetaryItemType","duration"]
["CashFlowsUsedInObtainingControlOfSubsidiariesOrOtherBusinessesClassifiedAsInvestingActivities","Cash flows used in obtaining control of subsidiaries or other businesses investing activities","xbrli:monetaryItemType","duration"]
["OtherCashReceiptsFromSalesOfEquityOrDebtInstrumentsOfOtherEntitiesClassifiedAsInvestingActivities","Other cash receipts from sales of equity or debt instruments of other entities investing activities","xbrli:monetaryItemType","duration"]
["OtherCashPaymentsToAcquireEquityOrDebtInstrumentsOfOtherEntitiesClassifiedAsInvestingActivities","Other cash payments to acquire equity or debt instruments of other entities investing activities","xbrli:monetaryItemType","duration"]
["OtherCashReceiptsFromSalesOfInterestsInJointVenturesClassifiedAsInvestingActivities","Other cash receipts from sales of interests in joint ventures investing activities","xbrli:monetaryItemType","duration"]
["OtherCashPaymentsToAcquireInterestsInJointVenturesClassifiedAsInvestingActivities","Other cash payments to acquire interests in joint ventures investing activities","xbrli:monetaryItemType","duration"]
["ProceedsFromSalesOfPropertyPlantAndEquipmentClassifiedAsInvestingActivities","Proceeds from sales of property, plant and equipment investing activities","xbrli:monetaryItemType","duration"]
["PurchaseOfPropertyPlantAndEquipmentClassifiedAsInvestingActivities","Purchase of property, plant and equipment investing activities","xbrli:monetaryItemType","duration"]
["ProceedsFromSalesOfInvestmentPropertyClassifiedAsInvestingActivities","Proceeds from sales of investment property investing activities","xbrli:monetaryItemType","duration"]
["PurchaseOfInvestmentPropertyClassifiedAsInvestingActivities","Purchase of investment property investing activities","xbrli:monetaryItemType","duration"]
["ProceedsFromSalesOfGoodwillClassifiedAsInvestingActivities","Proceeds from sales of goodwill investing activities","xbrli:monetaryItemType","duration"]
["PurchaseOfGoodwillClassifiedAsInvestingActivities","Purchase of goodwill investing activities","xbrli:monetaryItemType","duration"]
["ProceedsFromSalesOfIntangibleAssetsClassifiedAsInvestingActivities","Proceeds from sales of intangible assets investing activities","xbrli:monetaryItemType","duration"]
["PurchaseOfIntangibleAssetsClassifiedAsInvestingActivities","Purchase of intangible assets investing activities","xbrli:monetaryItemType","duration"]
["ProceedsFromBiologicalAssetsOtherThanBearerPlantsClassifiedAsInvestingActivities","Proceeds from biological assets other than bearer plants investing activities","xbrli:monetaryItemType","duration"]
["PurchaseOfBiologicalAssetsOtherThanBearerPlantsClassifiedAsInvestingActivities","Purchase of biological assets other than bearer plants investing activities","xbrli:monetaryItemType","duration"]
["ProceedsFromSalesOfOtherLongTermAssetsClassifiedAsInvestingActivities","Proceeds from sales of other long-term assets investing activities","xbrli:monetaryItemType","duration"]
["PurchaseOfOtherLongTermAssetsClassifiedAsInvestingActivities","Purchase of other long-term assets investing activities","xbrli:monetaryItemType","duration"]
["CashAdvancesAndLoansMadeToOtherPartiesClassifiedAsInvestingActivities","Cash advances and loans made to other parties investing activities","xbrli:monetaryItemType","duration"]
["CashReceiptsFromRepaymentOfAdvancesAndLoansMadeToOtherPartiesClassifiedAsInvestingActivities","Cash receipts from repayment of advances and loans made to other parties investing activities","xbrli:monetaryItemType","duration"]
["CashPaymentsForFutureContractsForwardContractsOptionContractsAndSwapContractsClassifiedAsInvestingActivities","Cash payments for future contracts, forward contracts, option contracts and swap contracts investing activities","xbrli:monetaryItemType","duration"]
["CashReceiptsFromFutureContractsForwardContractsOptionContractsAndSwapContractsClassifiedAsInvestingActivities","Cash receipts from future contracts, forward contracts, option contracts and swap contracts investing activities","xbrli:monetaryItemType","duration"]
["DividendsReceivedClassifiedAsInvestingActivities","Dividends received investing activities","xbrli:monetaryItemType","duration"]
["InterestReceivedClassifiedAsInvestingActivities","Interest received investing activities","xbrli:monetaryItemType","duration"]
["IncomeTaxesPaidRefundClassifiedAsInvestingActivities","Income taxes paid (refund) investing activities","xbrli:monetaryItemType","duration"]
["OtherInflowsOutflowsOfCashClassifiedAsInvestingActivities","Other inflows (outflows) of cash investing activities","xbrli:monetaryItemType","duration"]
["ProceedsFromGovernmentGrantsClassifiedAsInvestingActivities","Proceeds from government grants investing activities","xbrli:monetaryItemType","duration"]
["CashFlowsFromUsedInInvestingActivities","Net cash flows from (used in) investing activities","xbrli:monetaryItemType","duration"]
["CashFlowsFromUsedInFinancingActivitiesAbstract","Cash flows from used in financing activities [Abstract]","xbrli:stringItemType","duration"]
["ProceedsFromChangesInOwnershipInterestsInSubsidiariesThatDoNotResultInLossOfControl","Proceeds from changes in ownership interests in subsidiaries that do not result in loss of control","xbrli:monetaryItemType","duration"]
["PaymentsFromChangesInOwnershipInterestsInSubsidiariesThatDoNotResultInLossOfControl","Payments from changes in ownership interests in subsidiaries that do not result in loss of control","xbrli:monetaryItemType","duration"]
["ProceedsFromIssuingSharesClassifiedAsFinancingActivities","Proceeds from issuing shares financing activities","xbrli:monetaryItemType","duration"]
["ProceedsFromIssuingOtherEquityInstruments","Proceeds from issuing other equity instruments financing activities","xbrli:monetaryItemType","duration"]
["PaymentsToAcquireOrRedeemEntitysShares","Payments to acquire or redeem entity's shares financing activities","xbrli:monetaryItemType","duration"]
["PaymentsOfOtherEquityInstruments","Payments of other equity instruments financing activities","xbrli:monetaryItemType","duration"]
["ProceedsFromExerciseOfStockOptions","Proceeds from exercise of stock options financing activities","xbrli:monetaryItemType","duration"]
["ProceedsFromIssuingDebenturesNotesBondsEtc","Proceeds from issuing debentures notes bonds etc financing activities","xbrli:monetaryItemType","duration"]
["ProceedsFromBorrowingsClassifiedAsFinancingActivities","Proceeds from borrowings financing activities","xbrli:monetaryItemType","duration"]
["RepaymentsOfBorrowingsClassifiedAsFinancingActivities","Repayments of borrowings financing activities","xbrli:monetaryItemType","duration"]
["PaymentsOfFinanceLeaseLiabilitiesClassifiedAsFinancingActivities","Payments of finance lease liabilities financing activities","xbrli:monetaryItemType","duration"]
["PaymentsOfLeaseLiabilitiesClassifiedAsFinancingActivities","Payments of lease liabilities financing activities","xbrli:monetaryItemType","duration"]
["DividendsPaidClassifiedAsFinancingActivities","Dividends paid financing activities","xbrli:monetaryItemType","duration"]
["InterestPaidClassifiedAsFinancingActivities","Interest paid financing activities","xbrli:monetaryItemType","duration"]
["IncomeTaxesPaidRefundClassifiedAsFinancingActivities","Income taxes paid (refund) financing activities","xbrli:monetaryItemType","duration"]
["OtherInflowsOutflowsOfCashClassifiedAsFinancingActivities","Other inflows (outflows) of cash financing activities","xbrli:monetaryItemType","duration"]
["CashFlowsFromUsedInFinancingActivities","Net cash flows from (used in) financing activities","xbrli:monetaryItemType","duration"]
["IncreaseDecreaseInCashAndCashEquivalentsBeforeEffectOfExchangeRateChanges","Net increase (decrease) in cash and cash equivalents before effect of exchange rate changes","xbrli:monetaryItemType","duration"]
["EffectOfExchangeRateChangesOnCashAndCashEquivalentsAbstract","Effect of exchange rate changes on cash and cash equivalents [Abstract]","xbrli:stringItemType","duration"]
["EffectOfExchangeRateChangesOnCashAndCashEquivalents","Effect of exchange rate changes on cash and cash equivalents","xbrli:monetaryItemType","duration"]
["IncreaseDecreaseInCashAndCashEquivalents","Net increase (decrease) in cash and cash equivalents","xbrli:monetaryItemType","duration"]
["CashAndCashEquivalentsCashFlowStatement","Cash and cash equivalents cash flow statement at beginning of period","xbrli:monetaryItemType","instant"]
["CashAndCashEquivalentsCashFlowStatement","Cash and cash equivalents cash flow statement at end of period","xbrli:monetaryItemType","instant"]
["Cash Flow Indirect"]
["ProfitBeforeTax","Profit before tax indirect","xbrli:monetaryItemType","duration"]
["AdjustmentsForReconcileProfitLossAbstract","Adjustments for reconcile profit (loss) [Abstract]","xbrli:stringItemType","duration"]
["AdjustmentsForFinanceCosts","Adjustments for finance costs","xbrli:monetaryItemType","duration"]
["AdjustmentsForDecreaseIncreaseInInventories","Adjustments for decrease (increase) in inventories","xbrli:monetaryItemType","duration"]
["AdjustmentsForDecreaseIncreaseInTradeReceivablesCurrent","Adjustments for decrease (increase) in trade receivables, current","xbrli:monetaryItemType","duration"]
["AdjustmentsForDecreaseIncreaseInTradeReceivablesNoncurrent","Adjustments for decrease (increase) in trade receivables, non-current","xbrli:monetaryItemType","duration"]
["AdjustmentsForDecreaseIncreaseInOtherCurrentAssets","Adjustments for decrease (increase) in other current assets","xbrli:monetaryItemType","duration"]
["AdjustmentsForDecreaseIncreaseInOtherNoncurrentAssets","Adjustments for decrease (increase) in other non-current assets","xbrli:monetaryItemType","duration"]
["AdjustmentsForOtherFinancialAssetsNoncurrent","Adjustments for other financial assets, non-current","xbrli:monetaryItemType","duration"]
["AdjustmentsForOtherFinancialAssetsCurrent","Adjustments for other financial assets, current","xbrli:monetaryItemType","duration"]
["AdjustmentsForOtherBankBalances","Adjustments for other bank balances","xbrli:monetaryItemType","duration"]
["AdjustmentsForIncreaseDecreaseInTradePayablesCurrent","Adjustments for increase (decrease) in trade payables, current","xbrli:monetaryItemType","duration"]
["AdjustmentsForIncreaseDecreaseInTradePayablesNoncurrent","Adjustments for increase (decrease) in trade payables, non-current","xbrli:monetaryItemType","duration"]
["AdjustmentsForIncreaseDecreaseInOtherCurrentLiabilities","Adjustments for increase (decrease) in other current liabilities","xbrli:monetaryItemType","duration"]
["AdjustmentsForIncreaseDecreaseInOtherNoncurrentLiabilities","Adjustments for increase (decrease) in other non-current liabilities","xbrli:monetaryItemType","duration"]
["AdjustmentsForDepreciationAndAmortisationExpense","Adjustments for depreciation and amortisation expense","xbrli:monetaryItemType","duration"]
["AdjustmentsForImpairmentLossReversalOfImpairmentLossRecognisedInProfitOrLoss","Adjustments for impairment loss reversal of impairment loss recognised in profit or loss","xbrli:monetaryItemType","duration"]
["AdjustmentsForProvisionsCurrent","Adjustments for provisions, current","xbrli:monetaryItemType","duration"]
["AdjustmentsForProvisionsNoncurrent","Adjustments for provisions, non-current","xbrli:monetaryItemType","duration"]
["AdjustmentsForOtherFinancialLiabilitiesCurrent","Adjustments for other financial liabilities, current","xbrli:monetaryItemType","duration"]
["AdjustmentsForOtherFinancialLiabilitiesNoncurrent","Adjustments for other financial liabilities, non-current","xbrli:monetaryItemType","duration"]
["AdjustmentsForUnrealisedForeignExchangeLossesGains","Adjustments for unrealised foreign exchange losses gains","xbrli:monetaryItemType","duration"]
["AdjustmentsForDividendIncome","Adjustments for dividend income","xbrli:monetaryItemType","duration"]
["AdjustmentsForInterestIncome","Adjustments for interest income","xbrli:monetaryItemType","duration"]
["AdjustmentsForSharebasedPayments","Adjustments for share-based payments","xbrli:monetaryItemType","duration"]
["AdjustmentsForFairValueGainsLosses","Adjustments for fair value losses (gains)","xbrli:monetaryItemType","duration"]
["AdjustmentsForUndistributedProfitsOfAssociates","Adjustments for undistributed profits of associates","xbrli:monetaryItemType","duration"]
["OtherAdjustmentsForWhichCashEffectsAreInvestingOrFinancingCashFlow","Other adjustments for which cash effects are investing or financing cash flow","xbrli:monetaryItemType","duration"]
["OtherAdjustmentsToReconcileProfitLoss","Other adjustments to reconcile profit (loss)","xbrli:monetaryItemType","duration"]
["OtherAdjustmentsForNoncashItems","Other adjustments for non-cash items","xbrli:monetaryItemType","duration"]
["ShareOfProfitAndLossFromPartnershipFirmOrAssociationOfPersonsOrLimitedLiabilityPartnerships","Share of profit and loss from partnership firm or association of persons or limited liability partnerships","xbrli:monetaryItemType","duration"]
["AdjustmentsForReconcileProfitLoss","Total adjustments for reconcile profit (loss)","xbrli:monetaryItemType","duration"]
["ProceedsFromSalesOfIntangibleAssetsUnderDevelopment","Proceeds from sales of intangible assets under development","xbrli:monetaryItemType","duration"]
["PurchaseOfIntangibleAssetsUnderDevelopment","Purchase of intangible assets under development","xbrli:monetaryItemType","duration"]
["CashFlowsFromUsedInFinancingActivitiesAbstract","Cash flows from used in financing activities [Abstract]","xbrli:stringItemType","duration"]
["ProceedsFromChangesInOwnershipInterestsInSubsidiaries","Proceeds from changes in ownership interests in subsidiaries","xbrli:monetaryItemType","duration"]
["PaymentsFromChangesInOwnershipInterestsInSubsidiaries","Payments from changes in ownership interests in subsidiaries","xbrli:monetaryItemType","duration"]
["CashReceiptsFromShareOfProfitsOfPartnershipFirmOrAssociationOfPersonsOrLimitedLiabilityPartnerships","Cash receipts from share of profits of partnership firm or association of persons or limited liability partnerships","xbrli:monetaryItemType","duration"]
["CashPaymentForInvestmentInPartnershipFirmOrAssociationOfPersonsOrLimitedLiabilityPartnerships","Cash payment for investment in partnership firm or association of persons or limited liability partnerships","xbrli:monetaryItemType","duration"]
["WhetherCashFlowStatementIsApplicableOnCompany","Whether cash flow statement is applicable on company","xbrli:booleanItemType","duration"]
["TypeOfCashFlowStatement","Type of cash flow statement","xbrli:stringItemType","duration"]

{"sheet":"Index2","index":10,"n_rows":0,"n_cols":0,"rows_kept":0,"cut":false,"hidden":true,"merged":[]}